Workbook

Sheet Sheet1
A1: Team | B1: (All)
A2: Name | B2: Adam.Henrique
A4: Row Labels | B4: TOI/Gm | C4: Average of CF% | D4: Average of HSCF% | G4: TOI/Gm | H4: G60 | I4: A60 | J4: P60
A5: 2011-04-10 | B5: 11.6 | C5: 48.7 | D5: 100
A6: 2011-10-08 | B6: 8.3 | C6: 19.7
A7: 2011-10-10 | B7: 5.5 | C7: 60.3 | D7: 100
A8: 2011-10-22 | B8: 13.7 | C8: 23.8 | D8: 41.8
A9: 2011-10-25 | B9: 12.7 | C9: 62.8 | D9: 40.2
A10: 2011-10-27 | B10: 14.9 | C10: 52.2 | D10: 100
A11: 2011-10-29 | B11: 9.4 | C11: 54.1 | D11: 100
A12: 2011-11-02 | B12: 12.5 | C12: 35.2 | D12: 44.6
A13: 2011-11-03 | B13: 13 | C13: 61.2 | D13: 51.5
A14: 2011-11-05 | B14: 19 | C14: 27.9 | D14: 65.4
A15: 2011-11-08 | B15: 14.9 | C15: 53 | D15: 52.6
A16: 2011-11-11 | B16: 12.3 | C16: 48 | D16: 40.4
A17: 2011-11-12 | B17: 14.4 | C17: 38.4 | D17: 74.1
A18: 2011-11-15 | B18: 13.5 | C18: 38.4 | D18: 40.3
A19: 2011-11-16 | B19: 13.9 | C19: 40.4 | D19: 0
A20: 2011-11-19 | B20: 11.3 | C20: 36.6 | D20: 0
A21: 2011-11-21 | B21: 14.8 | C21: 43.9 | D21: 31.7
A22: 2011-11-23 | B22: 13.4 | C22: 56.9 | D22: 33.8
A23: 2011-11-25 | B23: 16.2 | C23: 63 | D23: 69.3
A24: 2011-11-26 | B24: 13.3 | C24: 48.6 | D24: 36.9 | G24: =AVERAGE(B5:B24) -> 12.93 | H24: =AVERAGE(C5:C24) -> 45.655
A25: 2011-11-30 | B25: 13 | C25: 42.3 | D25: 40.2 | G25: =AVERAGE(B6:B25) -> 13 | H25: =AVERAGE(C6:C25) -> 45.335 | I25: =AVERAGE(D6:D25) ->  | J25: =AVERAGE(E6:E25) -> 
A26: 2011-12-02 | B26: 15.6 | C26: 69.8 | D26: 56.6 | G26: 13.365 | H26: 47.84 | I26: 50.97
A27: 2011-12-03 | B27: 15.1 | C27: 70.8 | D27: 0 | G27: 13.845 | H27: 48.365 | I27: 45.97
A28: 2011-12-06 | B28: 14.4 | C28: 31.8 | D28: 0 | G28: 13.88 | H28: 48.765 | I28: 43.88
A29: 2011-12-08 | B29: 15.8 | C29: 35.3 | D29: 100 | G29: 14.035 | H29: 47.39 | I29: 46.87
A30: 2011-12-10 | B30: 12.5 | C30: 52 | D30: 100 | G30: 13.915 | H30: 47.38 | I30: 46.87
A31: 2011-12-12 | B31: 14.6 | C31: 72.7 | D31: 69.2 | G31: 14.175 | H31: 48.31 | I31: 45.33
A32: 2011-12-13 | B32: 15.7 | C32: 71.7 | D32: 81.2 | G32: 14.335 | H32: 50.135 | I32: 47.16
A33: 2011-12-16 | B33: 13.2 | C33: 61.1 | D33: 50.2 | G33: 14.345 | H33: 50.13 | I33: 47.095
A34: 2011-12-17 | B34: 15 | C34: 72.5 | D34: 40.7 | G34: 14.145 | H34: 52.36 | I34: 45.86
A35: 2011-12-20 | B35: 14 | C35: 39 | D35: 30.6 | G35: 14.1 | H35: 51.66 | I35: 44.76
A36: 2011-12-23 | B36: 14.6 | C36: 53.2 | D36: 40.2 | G36: 14.215 | H36: 51.92 | I36: 44.75
A37: 2011-12-26 | B37: 13.1 | C37: 51.8 | D37: 38.3 | G37: 14.15 | H37: 52.59 | I37: 42.96
A38: 2011-12-28 | B38: 13.5 | C38: 67.4 | D38: 43.5 | G38: 14.15 | H38: 54.04 | I38: 43.12
A39: 2011-12-31 | B39: 9.4 | C39: 45.6 | D39: 31.4 | G39: 13.925 | H39: 54.3 | I39: 44.69
A40: 2012-01-02 | B40: 14.3 | C40: 37.1 | D40: 42.2 | G40: 14.075 | H40: 54.325 | I40: 46.8
A41: 2012-01-04 | B41: 14.6 | C41: 40.9 | D41: 56.6 | G41: 14.065 | H41: 54.175 | I41: 48.045
A42: 2012-01-06 | B42: 12.9 | C42: 37.4 | D42: 62.6 | G42: 14.04 | H42: 53.2 | I42: 49.485
A43: 2012-01-07 | B43: 15.2 | C43: 49.9 | D43: 60.5 | G43: 13.99 | H43: 52.545 | I43: 49.045
A44: 2012-01-10 | B44: 11.3 | C44: 90.6 | D44: 74 | G44: 13.89 | H44: 54.645 | I44: 50.9
A45: 2012-01-11 | B45: 20.9 | C45: 38 | D45: 36.6 | G45: 14.285 | H45: 54.43 | I45: 50.72
A46: 2012-01-19 | B46: 14.6 | C46: 44.8 | D46: 100 | G46: 14.235 | H46: 53.18 | I46: 52.89
A47: 2012-01-21 | B47: 12.6 | C47: 58.9 | D47: 29 | G47: 14.11 | H47: 52.585 | I47: 54.34
A48: 2012-01-24 | B48: 16.8 | C48: 60.3 | D48: 56.4 | G48: 14.23 | H48: 54.01 | I48: 57.16
A49: 2012-02-05 | B49: 14.3 | C49: 54.7 | D49: 79.5 | G49: 14.155 | H49: 54.98 | I49: 56.135
A50: 2012-02-07 | B50: 15 | C50: 59 | D50: 58.9 | G50: 14.28 | H50: 55.33 | I50: 54.08
A51: 2012-02-09 | B51: 11.9 | C51: 53.9 | G51: 14.145 | H51: 54.39
A52: 2012-02-11 | B52: 15.3 | C52: 57.3 | D52: 54.4 | G52: 14.125 | H52: 53.67
A53: 2012-02-14 | B53: 14.5 | C53: 64.3 | D53: 70.8 | G53: 14.19 | H53: 53.83
A54: 2012-02-17 | B54: 14.4 | C54: 41.1 | D54: 49.9 | G54: 14.16 | H54: 52.26
A55: 2012-02-19 | B55: 15.9 | C55: 40.2 | D55: 100 | G55: 14.255 | H55: 52.32
A56: 2012-02-21 | B56: 17.8 | C56: 64 | D56: 80.4 | G56: 14.415 | H56: 52.86
A57: 2012-02-24 | B57: 20.2 | C57: 52.3 | D57: 74.4 | G57: 14.77 | H57: 52.885
A58: 2012-02-26 | B58: 14.1 | C58: 51.5 | D58: 54.5 | G58: 14.8 | H58: 52.09
A59: 2012-02-27 | B59: 15.3 | C59: 64.2 | D59: 63.4 | G59: 15.095 | H59: 53.02
A60: 2012-03-01 | B60: 14.1 | C60: 62.1 | D60: 77.6 | G60: 15.085 | H60: 54.27
A61: 2012-03-02 | B61: 16.7 | C61: 67.2 | D61: 81.6 | G61: 15.19 | H61: 55.585
A62: 2012-03-04 | B62: 13.8 | C62: 44.9 | D62: 50.5 | G62: 15.235 | H62: 55.96
A63: 2012-03-06 | B63: 16.1 | C63: 57.6 | D63: 60.2 | G63: 15.28 | H63: 56.345
A64: 2012-03-08 | B64: 15.7 | C64: 45.8 | D64: 32.2 | G64: 15.5 | H64: 54.105
A65: 2012-03-10 | B65: 13.1 | C65: 58.8 | D65: 53.9 | G65: 15.11 | H65: 55.145
A66: 2012-03-11 | B66: 13.6 | C66: 69.3 | D66: 100 | G66: 15.06 | H66: 56.37
A67: 2012-03-13 | B67: 12.3 | C67: 29.7 | D67: 21.4 | G67: 15.045 | H67: 54.91
A68: 2012-03-15 | B68: 17.9 | C68: 76.4 | D68: 86.2 | G68: 15.1 | H68: 55.715
A69: 2012-03-17 | B69: 13.3 | C69: 15.4 | D69: 0 | G69: 15.05 | H69: 53.75
A70: 2012-03-19 | B70: 13.2 | C70: 31.7 | D70: 40.3 | G70: 14.96 | H70: 52.385
A71: 2012-03-20 | B71: 14.1 | C71: 48.2 | D71: 100 | G71: 15.07 | H71: 52.1 | I71: 62.585
A72: 2012-03-23 | B72: 13.7 | C72: 71 | D72: 35.6 | G72: 14.99 | H72: 52.785 | I72: 61.645
A73: 2012-03-25 | B73: 14.5 | C73: 54.4 | D73: 48.1 | G73: 14.99 | H73: 52.29 | I73: 60.51
A74: 2012-03-27 | B74: 14.9 | C74: 35 | D74: 15.4 | G74: 15.015 | H74: 51.985 | I74: 58.785
A75: 2012-03-29 | B75: 12.6 | C75: 79.8 | D75: 74.4 | G75: 14.85 | H75: 53.965 | I75: 57.505
A76: 2012-03-31 | B76: 9.8 | C76: 62.7 | D76: 58.6 | G76: 14.45 | H76: 53.9 | I76: 56.415
A77: 2012-04-03 | B77: 15.5 | C77: 41.6 | D77: 100 | G77: 14.215 | H77: 53.365 | I77: 57.695
A78: 2012-04-05 | B78: 15 | C78: 48.7 | D78: 100 | G78: 14.26 | H78: 53.225 | I78: 59.97
A79: 2012-04-07 | B79: 11.2 | C79: 44 | D79: 17.4 | G79: 14.055 | H79: 52.215 | I79: 57.67
A80: 2012-04-13 | B80: 10.6 | C80: 32.4 | D80: 100 | G80: 13.88 | H80: 50.73 | I80: 58.79
A81: 2012-04-15 | B81: 14.8 | C81: 49.3 | D81: 62.1 | G81: 13.785 | H81: 49.835 | I81: 57.815
A82: 2012-04-17 | B82: 14.5 | C82: 51.7 | D82: 0 | G82: 13.82 | H82: 50.175 | I82: 55.29
A83: 2012-04-19 | B83: 9.1 | C83: 58.9 | D83: 66.5 | G83: 13.47 | H83: 50.24 | I83: 55.605
A84: 2012-04-21 | B84: 9.4 | C84: 50.5 | D84: 65.1 | G84: 13.155 | H84: 50.475 | I84: 57.25
A85: 2012-04-24 | B85: 11.4 | C85: 67.8 | D85: 59.2 | G85: 13.07 | H85: 50.925 | I85: 57.515
A86: 2012-04-26 | B86: 16.3 | C86: 55.6 | D86: 67.5 | G86: 13.205 | H86: 50.24 | I86: 55.89
A87: 2012-04-29 | B87: 11.4 | C87: 30.4 | D87: 0 | G87: 13.16 | H87: 50.275 | I87: 54.82
A88: 2012-05-01 | B88: 16.2 | C88: 57.4 | D88: 100 | G88: 13.075 | H88: 49.325 | I88: 55.51
A89: 2012-05-03 | B89: 17.6 | C89: 62.4 | D89: 45.6 | G89: =AVERAGE(B70:B89) -> 13.29 | H89: =AVERAGE(C70:C89) -> 51.675 | I89: =AVERAGE(D70:D89) -> 57.79 | J89: =AVERAGE(E70:E89) -> 
A90: 2012-05-06 | B90: 10.6 | C90: 85 | D90: 100 | G90: 13.16 | H90: 54.34 | I90: 60.775
A91: 2012-05-08 | B91: 12.7 | C91: 54.2 | D91: 83.5 | G91: 13.09 | H91: 54.64 | I91: 59.95
A92: 2012-05-14 | B92: 9.5 | C92: 56.3 | D92: 100 | G92: 12.88 | H92: 53.905 | I92: 63.17
A93: 2012-05-16 | B93: 13.1 | C93: 79.9 | D93: 100 | G93: 12.81 | H93: 55.18 | I93: 65.765
A94: 2012-05-19 | B94: 13.1 | C94: 69.9 | D94: 60.7 | G94: 12.72 | H94: 56.925 | I94: 68.03
A95: 2012-05-21 | B95: 11.5 | C95: 45.3 | D95: 100 | G95: 12.665 | H95: 55.2 | I95: 69.31
A96: 2012-05-23 | B96: 12.7 | C96: 56.7 | D96: 47.1 | G96: 12.81 | H96: 54.9 | I96: 68.735
A97: 2012-05-25 | B97: 11.9 | C97: 31.9 | D97: 100 | G97: 12.63 | H97: 54.415 | I97: 68.735
A98: 2012-05-30 | B98: 14.9 | C98: 31.8 | D98: 37.6 | G98: 12.625 | H98: 53.57 | I98: 65.615
A99: 2012-06-02 | B99: 17.4 | C99: 64 | D99: 53.4 | G99: 12.935 | H99: 54.57 | I99: 67.415
A100: 2012-06-04 | B100: 11.9 | C100: 63.2 | D100: 100 | G100: 13 | H100: 56.11 | I100: 67.415
A101: 2012-06-06 | B101: 10.7 | C101: 51.7 | D101: 100 | G101: 12.795 | H101: 56.23 | I101: 69.31
A102: 2012-06-09 | B102: 14.6 | C102: 31.9 | D102: 0 | G102: 12.8 | H102: 55.24 | I102: 69.31
A103: 2012-06-11 | B103: 12.1 | C103: 67.3 | D103: 31.8 | G103: 12.95 | H103: 55.66 | I103: 67.575
A104: 2013-01-31 | B104: 10.6 | C104: 66.8 | D104: 23.1 | G104: 13.01 | H104: 56.475 | I104: 65.475
A105: 2013-02-02 | B105: 12.5 | C105: 35.5 | D105: 70.3 | G105: 13.065 | H105: 54.86 | I105: 66.03
A106: 2013-02-03 | B106: 11.5 | C106: 55.3 | D106: 100 | G106: 12.825 | H106: 54.845 | I106: 67.655
A107: 2013-02-05 | B107: 13.8 | C107: 56.4 | D107: 66.3 | G107: 12.945 | H107: 56.145 | I107: 70.97
A108: 2013-02-07 | B108: 14.2 | C108: 60.4 | D108: 55.3 | G108: 12.845 | H108: 56.295 | I108: 68.735
A109: 2013-02-09 | B109: 11.3 | C109: 63.7 | D109: 45.7 | G109: 12.53 | H109: 56.36 | I109: 68.74
A110: 2013-02-10 | B110: 14.7 | C110: 65.8 | D110: 51.4 | G110: 12.735 | H110: 55.4 | I110: 66.31
A111: 2013-02-12 | B111: 12.2 | C111: 62.2 | D111: 83.8 | G111: 12.71 | H111: 55.8 | I111: 66.325
A112: 2013-02-15 | B112: 15.1 | C112: 55.4 | D112: 71.8 | G112: 12.99 | H112: 55.755 | I112: 64.915
A113: 2013-02-16 | B113: 12.1 | C113: 61.7 | D113: 53 | G113: 12.94 | H113: 54.845 | I113: 62.565
A114: 2013-02-18 | B114: 15.4 | C114: 51.2 | D114: 30.7 | G114: 13.055 | H114: 53.91 | I114: 61.065
A115: 2013-02-21 | B115: 10.8 | C115: 53 | D115: 77 | G115: 13.02 | H115: 54.295 | I115: 59.915
A116: 2013-02-23 | B116: 11 | C116: 47.8 | D116: 100 | G116: 12.935 | H116: 53.85 | I116: 62.56
A117: 2013-02-24 | B117: 12.9 | C117: 34.3 | D117: 0 | G117: 12.985 | H117: 53.97 | I117: 57.56
A118: 2013-02-28 | B118: 15.7 | C118: 59.4 | D118: 47.9 | G118: 13.025 | H118: 55.35 | I118: 58.075
A119: 2013-03-02 | B119: 10.7 | C119: 60 | D119: 61.4 | G119: 12.69 | H119: 55.15 | I119: 58.475
A120: 2013-03-04 | B120: 11.8 | C120: 53.1 | D120: 43.1 | G120: 12.685 | H120: 54.645 | I120: 55.63
A121: 2013-03-05 | B121: 14.4 | C121: 61.7 | D121: 100 | G121: 12.87 | H121: 55.145 | I121: 55.63
A122: 2013-03-07 | B122: 14.3 | C122: 57.9 | D122: 100 | G122: 12.855 | H122: 56.445 | I122: 60.63
A123: 2013-03-09 | B123: 11.6 | C123: 39.2 | D123: 0 | G123: 12.83 | H123: 55.04 | I123: 59.04
A124: 2013-03-10 | B124: 15.7 | C124: 63.7 | D124: 74 | G124: 13.085 | H124: 54.885 | I124: 61.585
A125: 2013-03-13 | B125: 13.3 | C125: 49.4 | D125: 60.1 | G125: 13.125 | H125: 55.58 | I125: 61.075
A126: 2013-03-15 | B126: 14 | C126: 60.8 | D126: 100 | G126: 13.25 | H126: 55.855 | I126: 61.075
A127: 2013-03-16 | B127: 12.7 | C127: 45.3 | D127: 73 | G127: 13.195 | H127: 55.3 | I127: 61.41
A128: 2013-03-19 | B128: 14.3 | C128: 46.3 | D128: 73.2 | G128: 13.2 | H128: 54.595 | I128: 62.305
A129: 2013-03-21 | B129: 13.1 | C129: 52.2 | D129: 37.8 | G129: 13.29 | H129: 54.02 | I129: 61.91
A130: 2013-03-23 | B130: 15.7 | C130: 56.9 | D130: 60.5 | G130: 13.34 | H130: 53.575 | I130: 62.365
A131: 2013-03-25 | B131: 17.7 | C131: 77.7 | D131: 25.8 | G131: 13.615 | H131: 54.35 | I131: 59.465
A132: 2013-03-29 | B132: 12.2 | C132: 40.7 | D132: 0 | G132: 13.47 | H132: 53.615 | I132: 55.875
A133: 2013-03-30 | B133: 12.3 | C133: 49.1 | D133: 0 | G133: 13.48 | H133: 52.985 | I133: 53.225
A134: 2013-04-01 | B134: 13.4 | C134: 68.5 | D134: 46.6 | G134: 13.38 | H134: 53.85 | I134: 54.02
A135: 2013-04-04 | B135: 16.1 | C135: 58.8 | D135: 100 | G135: 13.645 | H135: 54.14 | I135: 55.17
A136: 2013-04-06 | B136: 11.6 | C136: 56.8 | D136: 100 | G136: 13.675 | H136: 54.59 | I136: 55.17
A137: 2013-04-07 | B137: 13 | C137: 58.7 | D137: 18.9 | G137: 13.68 | H137: 55.81 | I137: 56.115
A138: 2013-04-10 | B138: 10.9 | C138: 45.7 | D138: 30.4 | G138: 13.44 | H138: 55.125 | I138: 55.24
A139: 2013-04-12 | B139: 12.8 | C139: 69.3 | D139: 100 | G139: 13.545 | H139: 55.59 | I139: 57.17
A140: 2013-04-15 | B140: 13.1 | C140: 85.6 | D140: 100 | G140: 13.61 | H140: 57.215 | I140: 60.015
A141: 2013-04-18 | B141: 15.8 | C141: 56.3 | D141: 100 | G141: 13.68 | H141: 56.945 | I141: 60.015
A142: 2013-04-20 | B142: 17.4 | C142: 65 | D142: 73.8 | G142: 13.835 | H142: 57.3 | I142: 58.705
A143: 2013-04-21 | B143: 11.6 | C143: 65.3 | D143: 100 | G143: 13.835 | H143: 58.605 | I143: 63.705
A144: 2013-04-25 | B144: 14.5 | C144: 52.7 | D144: 0 | G144: 13.775 | H144: 58.055 | I144: 60.005
A145: 2013-04-27 | B145: 9.3 | C145: 32.8 | D145: 0 | G145: 13.575 | H145: 57.225 | I145: 57
A146: 2013-10-03 | B146: 16.6 | C146: 57.6 | D146: 52.8 | G146: 13.705 | H146: 57.065 | I146: 54.64
A147: 2013-10-04 | B147: 17.5 | C147: 73 | D147: 74.5 | G147: 13.945 | H147: 58.45 | I147: 54.715
A148: 2013-10-07 | B148: 12.6 | C148: 58.7 | D148: 54.3 | G148: 13.86 | H148: 59.07 | I148: 53.77
A149: 2013-10-08 | B149: 13.1 | C149: 33.7 | D149: 77.6 | G149: 13.86 | H149: 58.145 | I149: 55.76
A150: 2013-10-11 | B150: 15.9 | C150: 46.9 | D150: 33.7 | G150: 13.87 | H150: 57.645 | I150: 54.42
A151: 2013-10-13 | B151: 12.7 | C151: 50.1 | D151: 0 | G151: 13.62 | H151: 56.265 | I151: 53.13
A152: 2013-10-17 | B152: 10.4 | C152: 65.1 | D152: 79.7 | G152: 13.53 | H152: 57.485 | I152: 57.115
A153: 2013-10-19 | B153: 13.3 | C153: 53.8 | D153: 100 | G153: =AVERAGE(B134:B153) -> 13.58 | H153: =AVERAGE(C134:C153) -> 57.72 | I153: =AVERAGE(D134:D153) -> 62.115 | J153: =AVERAGE(E134:E153) -> 
A154: 2013-10-22 | B154: 12.4 | C154: 72.1 | D154: 51.3 | G154: 13.53 | H154: 57.9 | I154: 62.35
A155: 2013-10-24 | B155: 15.2 | C155: 53.2 | D155: 65.4 | G155: 13.485 | H155: 57.62 | I155: 60.62
A156: 2013-10-26 | B156: 11.4 | C156: 36.5 | D156: 0 | G156: 13.475 | H156: 56.605 | I156: 55.62
A157: 2013-10-29 | B157: 11.5 | C157: 51.2 | G157: 13.4 | H157: 56.23
A158: 2013-11-02 | B158: 14.7 | C158: 33.1 | D158: 46.1 | G158: 13.59 | H158: 55.6
A159: 2013-11-03 | B159: 11.8 | C159: 70.3 | D159: 52.1 | G159: 13.54 | H159: 55.65
A160: 2013-11-07 | B160: 11.9 | C160: 37.2 | D160: 69.9 | G160: 13.48 | H160: 53.23
A161: 2013-11-08 | B161: 11.8 | C161: 48.3 | D161: 0 | G161: 13.28 | H161: 52.83
A162: 2013-11-10 | B162: 11.7 | C162: 58.1 | D162: 40.6 | G162: 12.995 | H162: 52.485
A163: 2013-11-12 | B163: 12.2 | C163: 65.3 | D163: 100 | G163: 13.025 | H163: 52.485
A164: 2013-11-15 | B164: 15.9 | C164: 49.9 | D164: 84 | G164: 13.095 | H164: 52.345
A165: 2013-11-16 | B165: 12.7 | C165: 39.4 | D165: 81.2 | G165: 13.265 | H165: 52.675
A166: 2013-11-20 | B166: 14.4 | C166: 31.8 | D166: 51.2 | G166: 13.155 | H166: 51.385
A167: 2013-11-21 | B167: 15.9 | C167: 34.2 | D167: 36.5 | G167: 13.075 | H167: 49.445
A168: 2013-11-23 | B168: 15 | C168: 32.6 | D168: 0 | G168: 13.195 | H168: 48.14
A169: 2013-11-25 | B169: 12 | C169: 70.2 | D169: 62.1 | G169: 13.14 | H169: 49.965
A170: 2013-11-27 | B170: 14.1 | C170: 49.2 | D170: 28.6 | G170: 13.05 | H170: 50.08
A171: 2013-11-29 | B171: 12.1 | C171: 62.5 | D171: 81.5 | G171: 13.02 | H171: 50.7
A172: 2013-11-30 | B172: 18.1 | C172: 63.9 | D172: 100 | G172: 13.405 | H172: 50.64
A173: 2013-12-02 | B173: 8.6 | C173: 69.2 | D173: 100 | G173: 13.17 | H173: 51.41
A174: 2013-12-04 | B174: 14.2 | C174: 49.6 | D174: 40.4 | G174: 13.26 | H174: 50.285
A175: 2013-12-06 | B175: 11.1 | C175: 24 | D175: 46.6 | G175: 13.055 | H175: 48.825
A176: 2013-12-07 | B176: 14.6 | C176: 37.8 | D176: 51.8 | G176: 13.215 | H176: 48.89
A177: 2013-12-10 | B177: 10.9 | C177: 72.8 | D177: 54 | G177: 13.185 | H177: 49.97 | I177: 56.33
A178: 2013-12-13 | B178: 12.2 | C178: 66.5 | D178: 81.6 | G178: 13.06 | H178: 51.64 | I178: 58.105
A179: 2013-12-14 | B179: 9.7 | C179: 48.7 | D179: 72.9 | G179: 12.955 | H179: 50.56 | I179: 59.145
A180: 2013-12-18 | B180: 12.4 | C180: 45.9 | D180: 46.4 | G180: 12.98 | H180: 50.995 | I180: 57.97
A181: 2013-12-20 | B181: 13.9 | C181: 55.7 | D181: 50 | G181: 13.085 | H181: 51.365 | I181: 60.47
A182: 2013-12-21 | B182: 14.1 | C182: 72.9 | D182: 46.3 | G182: 13.205 | H182: 52.105 | I182: 60.755
A183: 2013-12-23 | B183: 15.4 | C183: 62.3 | D183: 66.7 | G183: 13.365 | H183: 51.955 | I183: 59.09
A184: 2013-12-27 | B184: 9.3 | C184: 61.4 | D184: 100 | G184: 13.035 | H184: 52.53 | I184: 59.89
A185: 2013-12-28 | B185: 16.3 | C185: 36.1 | D185: 44.1 | G185: 13.215 | H185: 52.365 | I185: 58.035
A186: 2013-12-31 | B186: 15.3 | C186: 55 | D186: 49 | G186: 13.26 | H186: 53.525 | I186: 57.925
A187: 2014-01-03 | B187: 12.3 | C187: 30.7 | D187: 0 | G187: 13.08 | H187: 53.35 | I187: 56.1
A188: 2014-01-04 | B188: 9.3 | C188: 59.5 | D188: 55.8 | G188: 12.795 | H188: 54.695 | I188: 58.89
A189: 2014-01-07 | B189: 11.6 | C189: 74.3 | D189: 51.1 | G189: 12.775 | H189: 54.9 | I189: 58.34
A190: 2014-01-09 | B190: 13.7 | C190: 58 | D190: 67.7 | G190: 12.755 | H190: 55.34 | I190: 60.295
A191: 2014-01-11 | B191: 17.2 | C191: 66.9 | D191: 73.9 | G191: 13.01 | H191: 55.56 | I191: 59.915
A192: 2014-01-12 | B192: 12.2 | C192: 56.2 | D192: 20.4 | G192: 12.715 | H192: 55.175 | I192: 55.935
A193: 2014-01-14 | B193: 16.4 | C193: 68 | D193: 65.8 | G193: 13.105 | H193: 55.115 | I193: 54.225
A194: 2014-01-16 | B194: 14.1 | C194: 37.9 | D194: 39.2 | G194: 13.1 | H194: 54.53 | I194: 54.165
A195: 2014-01-18 | B195: 15.6 | C195: 52.4 | D195: 31.3 | G195: 13.325 | H195: 55.95 | I195: 53.4
A196: 2014-01-21 | B196: 9 | C196: 43 | D196: 58.1 | G196: 13.045 | H196: 56.21 | I196: 53.715
A197: 2014-01-24 | B197: 14.1 | C197: 56 | D197: 73.2 | G197: 13.205 | H197: 55.37 | I197: 54.675
A198: 2014-01-26 | B198: 15 | C198: 30.9 | D198: 30.3 | G198: 13.345 | H198: 53.59 | I198: 52.11
A199: 2014-01-28 | B199: 11.9 | C199: 45.5 | D199: 24.6 | G199: 13.455 | H199: 53.43 | I199: 49.695
A200: 2014-01-30 | B200: 17.1 | C200: 62.7 | D200: 57.9 | G200: 13.69 | H200: 54.27 | I200: 50.27
A201: 2014-01-31 | B201: 12.3 | C201: 63.4 | D201: 50.9 | G201: 13.61 | H201: 54.655 | I201: 50.315
... 177 more rows

Sheet Sheet1 (2)
A1: Team | B1: (All)
A2: Name | B2: Adam.Henrique
A4: Row Labels | B4: TOI/Gm | C4: Average of PSh% | D4: Average of OSh% | G4: TOI/Gm | H4: Average of PSh% | I4: Average of OSh% | J4: P60
A5: 2011-04-10 | B5: 11.6 | D5: 20.9
A6: 2011-10-08 | B6: 8.3 | D6: 0
A7: 2011-10-10 | B7: 5.5 | C7: 0 | D7: 0
A8: 2011-10-22 | B8: 13.7 | C8: 0 | D8: 0
A9: 2011-10-25 | B9: 12.7 | C9: 0 | D9: 0
A10: 2011-10-27 | B10: 14.9 | C10: 0 | D10: 15.4
A11: 2011-10-29 | B11: 9.4 | C11: 0 | D11: 0
A12: 2011-11-02 | B12: 12.5 | C12: 0 | D12: 0
A13: 2011-11-03 | B13: 13 | C13: 33.3 | D13: 19.4
A14: 2011-11-05 | B14: 19 | C14: 100 | D14: 16.9
A15: 2011-11-08 | B15: 14.9 | C15: 50 | D15: 11.7
A16: 2011-11-11 | B16: 12.3 | D16: 0
A17: 2011-11-12 | B17: 14.4 | D17: 0
A18: 2011-11-15 | B18: 13.5 | C18: 0 | D18: 35.1
A19: 2011-11-16 | B19: 13.9 | D19: 32.7
A20: 2011-11-19 | B20: 11.3 | C20: 0 | D20: 0
A21: 2011-11-21 | B21: 14.8 | C21: 0 | D21: 15.2
A22: 2011-11-23 | B22: 13.4 | C22: 0 | D22: 0
A23: 2011-11-25 | B23: 16.2 | C23: 0 | D23: 0
A24: 2011-11-26 | B24: 13.3 | C24: 33.3 | D24: 24.5 | G24: =AVERAGE(B5:B24) -> 12.93 | H24: =AVERAGE(C5:C24) ->  | I24: 9.59
A25: 2011-11-30 | B25: 13 | C25: 0 | D25: 21.8 | G25: =AVERAGE(B6:B25) -> 13 | I25: 9.635
A26: 2011-12-02 | B26: 15.6 | C26: 0 | D26: 13.2 | G26: 13.365 | I26: 10.295
A27: 2011-12-03 | B27: 15.1 | C27: 50 | D27: 25.5 | G27: 13.845 | I27: 11.57
A28: 2011-12-06 | B28: 14.4 | D28: 0 | G28: 13.88 | I28: 11.57
A29: 2011-12-08 | B29: 15.8 | C29: 0 | D29: 18.4 | G29: 14.035 | I29: 12.49
A30: 2011-12-10 | B30: 12.5 | C30: 0 | D30: 0 | G30: 13.915 | I30: 11.72
A31: 2011-12-12 | B31: 14.6 | D31: 48.6 | G31: 14.175 | I31: 14.15
A32: 2011-12-13 | B32: 15.7 | C32: 0 | D32: 8.1 | G32: 14.335 | I32: 14.555
A33: 2011-12-16 | B33: 13.2 | D33: 24.5 | G33: 14.345 | I33: 14.81
A34: 2011-12-17 | B34: 15 | C34: 0 | D34: 8.8 | G34: 14.145 | I34: 14.405
A35: 2011-12-20 | B35: 14 | C35: 0 | D35: 0 | G35: 14.1 | I35: 13.82
A36: 2011-12-23 | B36: 14.6 | C36: 33.3 | D36: 12.5 | G36: 14.215 | I36: 14.445
A37: 2011-12-26 | B37: 13.1 | C37: 33.3 | D37: 25.8 | G37: 14.15 | I37: 15.735
A38: 2011-12-28 | B38: 13.5 | C38: 0 | D38: 17.3 | G38: 14.15 | I38: 14.845
A39: 2011-12-31 | B39: 9.4 | D39: 0 | G39: 13.925 | I39: 13.21
A40: 2012-01-02 | B40: 14.3 | C40: 0 | D40: 0 | G40: 14.075 | I40: 13.21
A41: 2012-01-04 | B41: 14.6 | D41: 0 | G41: 14.065 | I41: 12.45
A42: 2012-01-06 | B42: 12.9 | C42: 0 | D42: 0 | G42: 14.04 | I42: 12.45
A43: 2012-01-07 | B43: 15.2 | C43: 0 | D43: 15 | G43: 13.99 | I43: 13.2
A44: 2012-01-10 | B44: 11.3 | C44: 0 | D44: 9 | G44: 13.89 | I44: 12.425
A45: 2012-01-11 | B45: 20.9 | C45: 0 | D45: 0 | G45: 14.285 | I45: 11.335
A46: 2012-01-19 | B46: 14.6 | D46: 0 | G46: 14.235 | I46: 10.675
A47: 2012-01-21 | B47: 12.6 | C47: 0 | D47: 0 | G47: 14.11 | I47: 9.4
A48: 2012-01-24 | B48: 16.8 | C48: 0 | D48: 0 | G48: 14.23 | I48: 9.4
A49: 2012-02-05 | B49: 14.3 | C49: 0 | D49: 13.6 | G49: 14.155 | I49: 9.16
A50: 2012-02-07 | B50: 15 | C50: 0 | D50: 0 | G50: 14.28 | I50: 9.16
A51: 2012-02-09 | B51: 11.9 | C51: 33.3 | D51: 14.4 | G51: 14.145 | I51: 7.45
A52: 2012-02-11 | B52: 15.3 | C52: 0 | D52: 0 | G52: 14.125 | I52: 7.045
A53: 2012-02-14 | B53: 14.5 | D53: 14.2 | G53: 14.19 | I53: 6.53
A54: 2012-02-17 | B54: 14.4 | C54: 100 | D54: 17 | G54: 14.16 | I54: 6.94
A55: 2012-02-19 | B55: 15.9 | D55: 15.3 | G55: 14.255 | I55: 7.705
A56: 2012-02-21 | B56: 17.8 | C56: 0 | D56: 5.2 | G56: 14.415 | I56: 7.34
A57: 2012-02-24 | B57: 20.2 | C57: 0 | D57: 0 | G57: 14.77 | I57: 6.05
A58: 2012-02-26 | B58: 14.1 | D58: 0 | G58: 14.8 | I58: 5.185
A59: 2012-02-27 | B59: 15.3 | C59: 0 | D59: 0 | G59: 15.095 | I59: 5.185
A60: 2012-03-01 | B60: 14.1 | D60: 0 | G60: 15.085 | I60: 5.185
A61: 2012-03-02 | B61: 16.7 | C61: 0 | D61: 24.4 | G61: 15.19 | I61: 6.405
A62: 2012-03-04 | B62: 13.8 | D62: 0 | G62: 15.235 | I62: 6.405
A63: 2012-03-06 | B63: 16.1 | C63: 0 | D63: 16.4 | G63: 15.28 | I63: 6.475
A64: 2012-03-08 | B64: 15.7 | C64: 0 | D64: 26.7 | G64: 15.5 | I64: 7.36
A65: 2012-03-10 | B65: 13.1 | D65: 0 | G65: 15.11 | I65: 7.36
A66: 2012-03-11 | B66: 13.6 | D66: 0 | G66: 15.06 | I66: 7.36
A67: 2012-03-13 | B67: 12.3 | D67: 0 | G67: 15.045 | I67: 7.36
A68: 2012-03-15 | B68: 17.9 | C68: 0 | D68: 0 | G68: 15.1 | I68: 7.36
A69: 2012-03-17 | B69: 13.3 | D69: 0 | G69: 15.05 | I69: 6.68
A70: 2012-03-19 | B70: 13.2 | D70: 0 | G70: 14.96 | I70: 6.68
A71: 2012-03-20 | B71: 14.1 | C71: 0 | D71: 0 | G71: 15.07 | I71: 5.96
A72: 2012-03-23 | B72: 13.7 | C72: 25 | D72: 9 | G72: 14.99 | I72: 6.41
A73: 2012-03-25 | B73: 14.5 | D73: 0 | G73: 14.99 | I73: 5.7
A74: 2012-03-27 | B74: 14.9 | C74: 0 | D74: 0 | G74: 15.015 | I74: 4.85
A75: 2012-03-29 | B75: 12.6 | C75: 0 | D75: 29.7 | G75: 14.85 | I75: 5.57
A76: 2012-03-31 | B76: 9.8 | C76: 0 | D76: 14.9 | G76: 14.45 | I76: 6.055
A77: 2012-04-03 | B77: 15.5 | C77: 0 | D77: 0 | G77: 14.215 | I77: 6.055
A78: 2012-04-05 | B78: 15 | C78: 0 | D78: 16.7 | G78: 14.26 | I78: 6.89
A79: 2012-04-07 | B79: 11.2 | C79: 0 | D79: 0 | G79: 14.055 | I79: 6.89
A80: 2012-04-13 | B80: 10.6 | D80: 0 | G80: 13.88 | I80: 6.89
A81: 2012-04-15 | B81: 14.8 | C81: 0 | D81: 22 | G81: 13.785 | I81: 6.77
A82: 2012-04-17 | B82: 14.5 | D82: 0 | G82: 13.82 | I82: 6.77
A83: 2012-04-19 | B83: 9.1 | C83: 0 | D83: 0 | G83: 13.47 | I83: 5.95
A84: 2012-04-21 | B84: 9.4 | C84: 0 | D84: 0 | G84: 13.155 | I84: 4.615
A85: 2012-04-24 | B85: 11.4 | C85: 0 | D85: 0 | G85: 13.07 | I85: 4.615
A86: 2012-04-26 | B86: 16.3 | C86: 100 | D86: 21.6 | G86: 13.205 | I86: 5.695
A87: 2012-04-29 | B87: 11.4 | C87: 0 | D87: 33.2 | G87: 13.16 | I87: 7.355
A88: 2012-05-01 | B88: 16.2 | C88: 0 | D88: 0 | G88: 13.075 | I88: 7.355
A89: 2012-05-03 | B89: 17.6 | C89: 0 | D89: 0 | G89: =AVERAGE(B70:B89) -> 13.29 | I89: 7.355
A90: 2012-05-06 | B90: 10.6 | C90: 0 | D90: 8.7 | G90: 13.16 | I90: 7.79
A91: 2012-05-08 | B91: 12.7 | C91: 0 | D91: 11.2 | G91: 13.09 | I91: 8.35
A92: 2012-05-14 | B92: 9.5 | C92: 0 | D92: 0 | G92: 12.88 | I92: 7.9
A93: 2012-05-16 | B93: 13.1 | D93: 15.5 | G93: 12.81 | I93: 8.675
A94: 2012-05-19 | B94: 13.1 | C94: 0 | D94: 0 | G94: 12.72 | I94: 8.675
A95: 2012-05-21 | B95: 11.5 | C95: 0 | D95: 0 | G95: 12.665 | I95: 7.19
A96: 2012-05-23 | B96: 12.7 | C96: 0 | D96: 19.1 | G96: 12.81 | I96: 7.4
A97: 2012-05-25 | B97: 11.9 | C97: 50 | D97: 20.2 | G97: 12.63 | I97: 8.41
A98: 2012-05-30 | B98: 14.9 | C98: 0 | D98: 0 | G98: 12.625 | I98: 7.575
A99: 2012-06-02 | B99: 17.4 | D99: 0 | G99: 12.935 | I99: 7.575
A100: 2012-06-04 | B100: 11.9 | C100: 0 | D100: 0 | G100: 13 | I100: 7.575
A101: 2012-06-06 | B101: 10.7 | C101: 100 | D101: 33.3 | G101: 12.795 | I101: 8.14
A102: 2012-06-09 | B102: 14.6 | C102: 0 | D102: 24.8 | G102: 12.8 | I102: 9.38
A103: 2012-06-11 | B103: 12.1 | C103: 50 | D103: 21.1 | G103: 12.95 | I103: 10.435
A104: 2013-01-31 | B104: 10.6 | D104: 15.4 | G104: 13.01 | I104: 11.205
A105: 2013-02-02 | B105: 12.5 | D105: 0 | G105: 13.065 | I105: 11.205
A106: 2013-02-03 | B106: 11.5 | D106: 0 | G106: 12.825 | I106: 10.125
A107: 2013-02-05 | B107: 13.8 | D107: 18.5 | G107: 12.945 | I107: 9.39
A108: 2013-02-07 | B108: 14.2 | D108: 11.8 | G108: 12.845 | I108: 9.98
A109: 2013-02-09 | B109: 11.3 | D109: 0 | G109: 12.53 | I109: 9.98
A110: 2013-02-10 | B110: 14.7 | D110: 21 | G110: 12.735 | I110: 10.595
A111: 2013-02-12 | B111: 12.2 | D111: 0 | G111: 12.71 | I111: 10.035
A112: 2013-02-15 | B112: 15.1 | D112: 15.2 | G112: 12.99 | I112: 10.795
A113: 2013-02-16 | B113: 12.1 | D113: 0 | G113: 12.94 | I113: 10.02
A114: 2013-02-18 | B114: 15.4 | D114: 0 | G114: 13.055 | I114: 10.02
A115: 2013-02-21 | B115: 10.8 | D115: 0 | G115: 13.02 | I115: 10.02
A116: 2013-02-23 | B116: 11 | D116: 0 | G116: 12.935 | I116: 9.065
A117: 2013-02-24 | B117: 12.9 | D117: 0 | G117: 12.985 | I117: 8.055
A118: 2013-02-28 | B118: 15.7 | D118: 12.7 | G118: 13.025 | I118: 8.69
A119: 2013-03-02 | B119: 10.7 | D119: 0 | G119: 12.69 | I119: 8.69
A120: 2013-03-04 | B120: 11.8 | D120: 0 | G120: 12.685 | I120: 8.69
A121: 2013-03-05 | B121: 14.4 | D121: 0 | G121: 12.87 | I121: 7.025
A122: 2013-03-07 | B122: 14.3 | D122: 0 | G122: 12.855 | I122: 5.785
A123: 2013-03-09 | B123: 11.6 | D123: 22 | G123: 12.83 | I123: 5.83
A124: 2013-03-10 | B124: 15.7 | D124: 0 | G124: 13.085 | I124: 5.06
A125: 2013-03-13 | B125: 13.3 | D125: 40 | G125: 13.125 | I125: 7.06
A126: 2013-03-15 | B126: 14 | D126: 0 | G126: 13.25 | I126: 7.06
A127: 2013-03-16 | B127: 12.7 | D127: 0 | G127: 13.195 | I127: 6.135
A128: 2013-03-19 | B128: 14.3 | D128: 0 | G128: 13.2 | I128: 5.545
A129: 2013-03-21 | B129: 13.1 | D129: 19.9 | G129: 13.29 | I129: 6.54
A130: 2013-03-23 | B130: 15.7 | D130: 19.2 | G130: 13.34 | I130: 6.45
A131: 2013-03-25 | B131: 17.7 | D131: 10.8 | G131: 13.615 | I131: 6.99
A132: 2013-03-29 | B132: 12.2 | D132: 43.9 | G132: 13.47 | I132: 8.425
A133: 2013-03-30 | B133: 12.3 | D133: 0 | G133: 13.48 | I133: 8.425
A134: 2013-04-01 | B134: 13.4 | D134: 0 | G134: 13.38 | I134: 8.425
A135: 2013-04-04 | B135: 16.1 | D135: 0 | G135: 13.645 | I135: 8.425
A136: 2013-04-06 | B136: 11.6 | D136: 15.4 | G136: 13.675 | I136: 9.195
A137: 2013-04-07 | B137: 13 | D137: 0 | G137: 13.68 | I137: 9.195
A138: 2013-04-10 | B138: 10.9 | D138: 18.7 | G138: 13.44 | I138: 9.495
A139: 2013-04-12 | B139: 12.8 | D139: 0 | G139: 13.545 | I139: 9.495
A140: 2013-04-15 | B140: 13.1 | D140: 0 | G140: 13.61 | I140: 9.495
A141: 2013-04-18 | B141: 15.8 | D141: 0 | G141: 13.68 | I141: 9.495
A142: 2013-04-20 | B142: 17.4 | D142: 0 | G142: 13.835 | I142: 9.495
A143: 2013-04-21 | B143: 11.6 | D143: 0 | G143: 13.835 | I143: 8.395
A144: 2013-04-25 | B144: 14.5 | D144: 0 | G144: 13.775 | I144: 8.395
A145: 2013-04-27 | B145: 9.3 | D145: 0 | G145: 13.575 | I145: 6.395
A146: 2013-10-03 | B146: 16.6 | C146: 0 | D146: 0 | G146: 13.705 | I146: 6.395
A147: 2013-10-04 | B147: 17.5 | C147: 0 | D147: 15.9 | G147: 13.945 | I147: 7.19
A148: 2013-10-07 | B148: 12.6 | C148: 0 | D148: 12.3 | G148: 13.86 | I148: 7.805
A149: 2013-10-08 | B149: 13.1 | D149: 0 | G149: 13.86 | I149: 6.81
A150: 2013-10-11 | B150: 15.9 | C150: 50 | D150: 19.8 | G150: 13.87 | I150: 6.84
A151: 2013-10-13 | B151: 12.7 | D151: 0 | G151: 13.62 | I151: 6.3
A152: 2013-10-17 | B152: 10.4 | D152: 0 | G152: 13.53 | I152: 4.105 | J152: =AVERAGE(E133:E152) -> 
A153: 2013-10-19 | B153: 13.3 | C153: 100 | D153: 48.1 | G153: =AVERAGE(B134:B153) -> 13.58 | I153: 6.51
A154: 2013-10-22 | B154: 12.4 | D154: 0 | G154: 13.53 | I154: 6.51
A155: 2013-10-24 | B155: 15.2 | D155: 0 | G155: 13.485 | I155: 6.51
A156: 2013-10-26 | B156: 11.4 | C156: 0 | D156: 0 | G156: 13.475 | I156: 5.74
A157: 2013-10-29 | B157: 11.5 | C157: 0 | D157: 0 | G157: 13.4 | I157: 5.74
A158: 2013-11-02 | B158: 14.7 | C158: 0 | D158: 0 | G158: 13.59 | I158: 4.805
A159: 2013-11-03 | B159: 11.8 | D159: 0 | G159: 13.54 | I159: 4.805
A160: 2013-11-07 | B160: 11.9 | C160: 50 | D160: 23.6 | G160: 13.48 | I160: 5.985
A161: 2013-11-08 | B161: 11.8 | D161: 0 | G161: 13.28 | I161: 5.985
A162: 2013-11-10 | B162: 11.7 | C162: 0 | D162: 0 | G162: 12.995 | I162: 5.985
A163: 2013-11-12 | B163: 12.2 | D163: 0 | G163: 13.025 | I163: 5.985
A164: 2013-11-15 | B164: 15.9 | C164: 0 | D164: 0 | G164: 13.095 | I164: 5.985
A165: 2013-11-16 | B165: 12.7 | D165: 0 | G165: 13.265 | I165: 5.985
A166: 2013-11-20 | B166: 14.4 | D166: 0 | G166: 13.155 | I166: 5.985
A167: 2013-11-21 | B167: 15.9 | D167: 0 | G167: 13.075 | I167: 5.19
A168: 2013-11-23 | B168: 15 | D168: 0 | G168: 13.195 | I168: 4.575
A169: 2013-11-25 | B169: 12 | C169: 0 | D169: 18 | G169: 13.14 | I169: 5.475
A170: 2013-11-27 | B170: 14.1 | C170: 0 | D170: 18.5 | G170: 13.05 | I170: 5.41
A171: 2013-11-29 | B171: 12.1 | C171: 0 | D171: 0 | G171: 13.02 | I171: 5.41
A172: 2013-11-30 | B172: 18.1 | C172: 0 | D172: 0 | G172: 13.405 | I172: 5.41
A173: 2013-12-02 | B173: 8.6 | C173: 0 | D173: 14.3 | G173: 13.17 | I173: 3.72
A174: 2013-12-04 | B174: 14.2 | D174: 18.1 | G174: 13.26 | I174: 4.625
A175: 2013-12-06 | B175: 11.1 | C175: 0 | D175: 0 | G175: 13.055 | I175: 4.625
A176: 2013-12-07 | B176: 14.6 | C176: 0 | D176: 20.8 | G176: 13.215 | I176: 5.665
A177: 2013-12-10 | B177: 10.9 | C177: 0 | D177: 9.8 | G177: 13.185 | I177: 6.155
A178: 2013-12-13 | B178: 12.2 | C178: 0 | D178: 0 | G178: 13.06 | I178: 6.155
A179: 2013-12-14 | B179: 9.7 | C179: 0 | D179: 0 | G179: 12.955 | I179: 6.155
A180: 2013-12-18 | B180: 12.4 | C180: 0 | D180: 16.4 | G180: 12.98 | I180: 5.795
A181: 2013-12-20 | B181: 13.9 | C181: 0 | D181: 34.9 | G181: 13.085 | I181: 7.54
A182: 2013-12-21 | B182: 14.1 | C182: 0 | D182: 0 | G182: 13.205 | I182: 7.54
A183: 2013-12-23 | B183: 15.4 | D183: 0 | G183: 13.365 | I183: 7.54
A184: 2013-12-27 | B184: 9.3 | C184: 100 | D184: 21.2 | G184: 13.035 | I184: 8.6
A185: 2013-12-28 | B185: 16.3 | C185: 33.3 | D185: 23.2 | G185: 13.215 | I185: 9.76
A186: 2013-12-31 | B186: 15.3 | C186: 50 | D186: 19.2 | G186: 13.26 | I186: 10.72
A187: 2014-01-03 | B187: 12.3 | C187: 0 | D187: 0 | G187: 13.08 | I187: 10.72
A188: 2014-01-04 | B188: 9.3 | D188: 0 | G188: 12.795 | I188: 10.72
A189: 2014-01-07 | B189: 11.6 | C189: 50 | D189: 12 | G189: 12.775 | I189: 10.42
A190: 2014-01-09 | B190: 13.7 | C190: 0 | D190: 0 | G190: 12.755 | I190: 9.495
A191: 2014-01-11 | B191: 17.2 | C191: 0 | D191: 8.5 | G191: 13.01 | I191: 9.92
A192: 2014-01-12 | B192: 12.2 | C192: 0 | D192: 16.4 | G192: 12.715 | I192: 10.74
A193: 2014-01-14 | B193: 16.4 | C193: 50 | D193: 21.9 | G193: 13.105 | I193: 11.12
A194: 2014-01-16 | B194: 14.1 | D194: 0 | G194: 13.1 | I194: 10.215
A195: 2014-01-18 | B195: 15.6 | D195: 0 | G195: 13.325 | I195: 10.215
A196: 2014-01-21 | B196: 9 | D196: 0 | G196: 13.045 | I196: 9.175
A197: 2014-01-24 | B197: 14.1 | C197: 0 | D197: 0 | G197: 13.205 | I197: 8.685
A198: 2014-01-26 | B198: 15 | C198: 0 | D198: 0 | G198: 13.345 | I198: 8.685
A199: 2014-01-28 | B199: 11.9 | D199: 0 | G199: 13.455 | I199: 8.685
A200: 2014-01-30 | B200: 17.1 | D200: 0 | G200: 13.69 | I200: 7.865
A201: 2014-01-31 | B201: 12.3 | C201: 0 | D201: 0 | G201: 13.61 | I201: 6.12
... 178 more rows

Sheet HSC
A1: Team | B1: (All)
A2: Name | B2: Steven.Stamkos
A4: Row Labels | B4: HSCF | C4: iHSC | D4: HSCF%Rel | E4: G60 | G4: HSCF | H4: iHSC | I4: HSCF%Rel | J4: G60
A5: 2008-10-04 | B5: 2.6 | C5: 3 | D5: 55.8 | E5: 0
A6: 2008-10-05 | B6: 0 | C6: 0 | D6: -39.5 | E6: 0
A7: 2008-10-11 | B7: 0 | C7: 0 | D7: -29.1 | E7: 0
A8: 2008-10-16 | B8: 0.9 | C8: 0 | D8: -36.4 | E8: 0
A9: 2008-10-18 | B9: 3.6 | C9: 0 | D9: 0 | E9: 0
A10: 2008-10-21 | B10: 2 | C10: 1 | D10: -12.6 | E10: 0
A11: 2008-10-25 | B11: 0.9 | C11: 1 | D11: -0.3 | E11: 0
A12: 2008-10-28 | B12: 1 | C12: 0 | D12: -8.6 | E12: 0
A13: 2008-10-30 | B13: 2.1 | C13: 1 | D13: -10.4 | E13: 5.8
A14: 2008-11-01 | B14: 0.9 | C14: 1 | D14: -39.3 | E14: 0
A15: 2008-11-05 | B15: 1 | C15: 1 | D15: -1.1 | E15: 0
A16: 2008-11-06 | B16: 1.8 | C16: 0 | D16: 19.7 | E16: 0
A17: 2008-11-08 | B17: 2.2 | C17: 1 | D17: 17.3 | E17: 0
A18: 2008-11-10 | B18: 3 | C18: 1 | D18: -6.9 | E18: 0
A19: 2008-11-12 | B19: 0 | C19: 0 | D19: -56.1 | E19: 0
A20: 2008-11-13 | B20: 0.8 | C20: 1 | D20: -5.7 | E20: 0
A21: 2008-11-16 | B21: 1.1 | C21: 0 | D21: 21.1 | E21: 0
A22: 2008-11-18 | B22: 6.9 | C22: 3 | D22: 24.1 | E22: 0
A23: 2008-11-21 | B23: 2.7 | C23: 2 | D23: -7.9 | E23: 0
A24: 2008-11-23 | B24: 1.7 | C24: 1 | D24: 23.6 | E24: 0 | G24: =AVERAGE(B5:B24) -> 1.76 | H24: =AVERAGE(C5:C24) -> 0.85 | I24: -4.615 | J24: 0.29
A25: 2008-11-26 | B25: 0 | C25: 0 | D25: -57.9 | E25: 0 | G25: =AVERAGE(B6:B25) -> 1.63 | H25: 0.7 | I25: -10.3 | J25: 0.29
A26: 2008-11-28 | B26: 0 | C26: 0 | D26: -54.4 | E26: 0 | G26: 1.63 | H26: 0.7 | I26: -11.045 | J26: 0.29
A27: 2008-11-29 | B27: 0.8 | C27: 0 | D27: -25.8 | E27: 0 | G27: 1.67 | H27: 0.7 | I27: -10.88 | J27: 0.29
A28: 2008-12-02 | B28: 1 | C28: 0 | D28: -29.7 | E28: 0 | G28: 1.675 | H28: 0.7 | I28: -10.545 | J28: 0.29
A29: 2008-12-04 | B29: 1.8 | C29: 0 | D29: -15.5 | E29: 0 | G29: 1.585 | H29: 0.7 | I29: -11.32 | J29: 0.29
A30: 2008-12-06 | B30: 0.9 | C30: 1 | D30: -55.3 | E30: 0 | G30: 1.53 | H30: 0.7 | I30: -13.455 | J30: 0.29
A31: 2008-12-08 | B31: 0 | C31: 0 | D31: -64.6 | E31: 0 | G31: 1.485 | H31: 0.65 | I31: -16.67 | J31: 0.29
A32: 2008-12-10 | B32: 3 | C32: 2 | D32: 6.5 | E32: 0 | G32: 1.585 | H32: 0.75 | I32: -15.915 | J32: 0.29
A33: 2008-12-11 | B33: 1 | C33: 0 | D33: -10.2 | E33: 0 | G33: 1.53 | H33: 0.7 | I33: -15.905 | J33: 0
A34: 2008-12-13 | B34: 1.4 | C34: 1 | D34: 51.3 | E34: 0 | G34: 1.555 | H34: 0.7 | I34: -11.375 | J34: 0
A35: 2008-12-18 | B35: 0 | C35: 0 | D35: -49.8 | E35: 0 | G35: 1.505 | H35: 0.65 | I35: -13.81 | J35: 0
A36: 2008-12-20 | B36: 2.2 | C36: 1 | D36: 10 | E36: 0 | G36: 1.525 | H36: 0.7 | I36: -14.295 | J36: 0
A37: 2008-12-23 | B37: 0 | C37: 0 | E37: 0 | G37: 1.415 | H37: 0.65 | J37: 0
A38: 2008-12-26 | B38: 3.1 | C38: 2 | D38: 6.8 | E38: 0 | G38: 1.42 | H38: 0.7 | J38: 0
A39: 2008-12-27 | B39: 2.9 | C39: 1 | D39: -4.6 | E39: 6.8 | G39: 1.565 | H39: 0.75 | J39: 0.34
A40: 2008-12-30 | B40: 0.8 | C40: 0 | D40: 79.5 | E40: 0 | G40: 1.565 | H40: 0.7 | J40: 0.34
A41: 2009-01-01 | B41: 3.9 | C41: 1 | D41: 22.4 | E41: 0 | G41: 1.705 | H41: 0.75 | J41: 0.34
A42: 2009-01-03 | B42: 0 | C42: 0 | E42: 0 | G42: 1.36 | H42: 0.6 | J42: 0.34
A43: 2009-01-04 | B43: 0.9 | C43: 0 | D43: 40.2 | E43: 0 | G43: 1.27 | H43: 0.5 | J43: 0.34
A44: 2009-01-08 | B44: 3.1 | C44: 2 | D44: 7.5 | E44: 0 | G44: 1.34 | H44: 0.55 | J44: 0.34
A45: 2009-01-12 | B45: 0 | C45: 0 | D45: -44 | E45: 0 | G45: 1.34 | H45: 0.55 | J45: 0.34
A46: 2009-01-13 | B46: 1 | C46: 1 | D46: 13.2 | E46: 5.3 | G46: 1.39 | H46: 0.6 | J46: 0.605
A47: 2009-01-15 | B47: 1.7 | C47: 1 | D47: -0.8 | E47: 0 | G47: 1.435 | H47: 0.65 | J47: 0.605
A48: 2009-01-19 | B48: 3 | C48: 2 | D48: 14.4 | E48: 5.7 | G48: 1.535 | H48: 0.75 | J48: 0.89
A49: 2009-01-21 | B49: 0 | C49: 0 | E49: 0 | G49: 1.445 | H49: 0.75 | J49: 0.89
A50: 2009-01-27 | B50: 2 | C50: 0 | D50: 12.3 | E50: 0 | G50: 1.5 | H50: 0.7 | J50: 0.89
A51: 2009-01-30 | B51: 0 | C51: 0 | D51: -51.6 | E51: 0 | G51: 1.5 | H51: 0.7 | J51: 0.89
A52: 2009-02-03 | B52: 1 | C52: 0 | D52: -14.8 | E52: 0 | G52: 1.4 | H52: 0.6 | J52: 0.89
A53: 2009-02-04 | B53: 0 | C53: 0 | D53: -54.3 | E53: 0 | G53: 1.35 | H53: 0.6 | J53: 0.89
A54: 2009-02-07 | B54: 1.9 | C54: 0 | D54: -25.5 | E54: 0 | G54: 1.375 | H54: 0.55 | J54: 0.89
A55: 2009-02-10 | B55: 1.8 | C55: 0 | D55: 56.8 | E55: 0 | G55: 1.465 | H55: 0.55 | J55: 0.89
A56: 2009-02-12 | B56: 2.6 | C56: 3 | D56: -5.3 | E56: 0 | G56: 1.485 | H56: 0.65 | J56: 0.89
A57: 2009-02-14 | B57: 1.8 | C57: 1 | D57: 14.2 | E57: 0 | G57: 1.575 | H57: 0.7 | J57: 0.89
A58: 2009-02-17 | B58: 0 | C58: 0 | D58: -59.6 | E58: 0 | G58: 1.42 | H58: 0.6 | J58: 0.89
A59: 2009-02-19 | B59: 0.9 | C59: 1 | D59: -50.2 | E59: 0 | G59: 1.32 | H59: 0.6 | J59: 0.55
A60: 2009-02-20 | B60: 0 | C60: 0 | D60: -37.5 | E60: 0 | G60: 1.28 | H60: 0.6 | J60: 0.55
A61: 2009-02-22 | B61: 1.8 | C61: 1 | D61: 10.5 | E61: 0 | G61: 1.175 | H61: 0.6 | J61: 0.55
A62: 2009-02-24 | B62: 1 | C62: 1 | D62: -15.5 | E62: 4.8 | G62: 1.225 | H62: 0.65 | J62: 0.79
A63: 2009-02-27 | B63: 1.9 | C63: 2 | D63: -27.2 | E63: 4.5 | G63: 1.275 | H63: 0.75 | J63: 1.015
A64: 2009-03-01 | B64: 4.2 | C64: 1 | D64: 49.9 | E64: 4.1 | G64: 1.33 | H64: 0.7 | J64: 1.22
A65: 2009-03-03 | B65: 3.5 | C65: 2 | D65: -27.2 | E65: 0 | G65: 1.505 | H65: 0.8 | J65: 1.22
A66: 2009-03-06 | B66: 3.6 | C66: 1 | D66: 45.1 | E66: 0 | G66: 1.635 | H66: 0.8 | J66: 0.955
A67: 2009-03-07 | B67: 0.8 | C67: 0 | D67: -35.7 | E67: 0 | G67: 1.59 | H67: 0.75 | J67: 0.955
A68: 2009-03-11 | B68: 4.5 | C68: 3 | D68: 52 | E68: 0 | G68: 1.665 | H68: 0.8 | J68: 0.67
A69: 2009-03-12 | B69: 4 | C69: 0 | D69: 22.4 | E69: 0 | G69: 1.865 | H69: 0.8 | I69: -7.06 | J69: 0.67
A70: 2009-03-14 | B70: 2.1 | C70: 0 | D70: 29.7 | E70: 0 | G70: 1.87 | H70: 0.8 | I70: -6.19 | J70: 0.67
A71: 2009-03-17 | B71: 2.8 | C71: 1 | D71: 39.3 | E71: 0 | G71: 2.01 | H71: 0.85 | I71: -1.645 | J71: 0.67
A72: 2009-03-19 | B72: 5.5 | C72: 1 | D72: 40 | E72: 0 | G72: 2.235 | H72: 0.9 | I72: 1.095 | J72: 0.67
A73: 2009-03-21 | B73: 2.6 | C73: 0 | D73: 0.2 | E73: 4.6 | G73: 2.365 | H73: 0.9 | I73: 3.82 | J73: 0.9
A74: 2009-03-24 | B74: 0.9 | C74: 0 | D74: -21.2 | E74: 0 | G74: 2.315 | H74: 0.9 | I74: 4.035 | J74: 0.9
A75: 2009-03-26 | B75: 1 | C75: 0 | D75: -18 | E75: 0 | G75: 2.275 | H75: 0.9 | I75: 0.295 | J75: 0.9
A76: 2009-03-27 | B76: 2 | C76: 1 | D76: 3.4 | E76: 5.6 | G76: 2.245 | H76: 0.8 | I76: 0.73 | J76: 1.18
A77: 2009-03-29 | B77: 0 | C77: 0 | D77: -46.7 | E77: 0 | G77: 2.155 | H77: 0.75 | I77: -2.315 | J77: 1.18
A78: 2009-03-31 | B78: 0.9 | C78: 0 | D78: -31.3 | E78: 4.8 | G78: 2.2 | H78: 0.75 | I78: -0.9 | J78: 1.42
A79: 2009-04-03 | B79: 2 | C79: 0 | D79: 20.2 | E79: 0 | G79: 2.255 | H79: 0.7 | I79: 2.62 | J79: 1.42
A80: 2009-04-04 | B80: 2.4 | C80: 3 | D80: -13.9 | E80: 0 | G80: 2.375 | H80: 0.85 | I80: 3.8 | J80: 1.42
A81: 2009-04-07 | B81: 1.9 | C81: 0 | D81: -19 | E81: 0 | G81: 2.38 | H81: 0.8 | I81: 2.325 | J81: 1.42
A82: 2009-04-09 | B82: 2.1 | C82: 1 | D82: 47.2 | E82: 4.6 | G82: 2.435 | H82: 0.8 | I82: 5.46 | J82: 1.41
A83: 2009-04-11 | B83: 7.4 | C83: 4 | D83: 31.7 | E83: 4.1 | G83: 2.71 | H83: 0.9 | I83: 8.405 | J83: 1.39
A84: 2009-10-03 | B84: 6.6 | C84: 4 | D84: 0.6 | E84: 0 | G84: 2.83 | H84: 1.05 | I84: 5.94 | J84: 1.185
A85: 2009-10-06 | B85: 0.9 | C85: 0 | D85: 4.6 | E85: 0 | G85: 2.7 | H85: 0.95 | I85: 7.53 | J85: 1.185
A86: 2009-10-08 | B86: 4.1 | C86: 2 | D86: -33.3 | E86: 4.5 | G86: 2.725 | H86: 1 | I86: 3.61 | J86: 1.41
A87: 2009-10-10 | B87: 4.5 | C87: 0 | D87: -22.4 | E87: 0 | G87: 2.91 | H87: 1 | I87: 4.275 | J87: 1.41
A88: 2009-10-12 | B88: 4.3 | C88: 1 | D88: 14.4 | E88: 0 | G88: 2.9 | H88: 0.9 | I88: 2.395 | J88: 1.41
A89: 2009-10-15 | B89: 2.2 | C89: 1 | D89: 35.9 | E89: 0 | G89: =AVERAGE(B70:B89) -> 2.81 | H89: 0.95 | I89: 3.07 | J89: 1.41
A90: 2009-10-17 | B90: 2 | C90: 0 | D90: 73.4 | E90: 0 | G90: 2.805 | H90: 0.95 | I90: 5.255 | J90: 1.41
A91: 2009-10-22 | B91: 2 | C91: 1 | D91: -57.4 | E91: 4.9 | G91: 2.765 | H91: 0.95 | I91: 0.42 | J91: 1.655
A92: 2009-10-24 | B92: 5.5 | C92: 3 | D92: 17.3 | E92: 4.4 | G92: 2.765 | H92: 1.05 | I92: -0.715 | J92: 1.875
A93: 2009-10-29 | B93: 3.9 | C93: 1 | D93: 34.8 | E93: 0 | G93: 2.83 | H93: 1.1 | I93: 1.015 | J93: 1.645
A94: 2009-10-31 | B94: 0.8 | C94: 1 | D94: -36.5 | E94: 4.5 | G94: 2.825 | H94: 1.15 | I94: 0.25 | J94: 1.87
A95: 2009-11-02 | B95: 4.1 | C95: 2 | D95: 27.1 | E95: 4.5 | G95: 2.98 | H95: 1.25 | I95: 2.505 | J95: 2.095
A96: 2009-11-03 | B96: 1.9 | C96: 1 | D96: 27 | E96: 0 | G96: 2.975 | H96: 1.25 | I96: 3.685 | J96: 1.815
A97: 2009-11-05 | B97: 2.1 | C97: 0 | D97: -9.9 | E97: 0 | G97: 3.08 | H97: 1.25 | I97: 5.525 | J97: 1.815
A98: 2009-11-07 | B98: 1 | C98: 0 | D98: -11.3 | E98: 0 | G98: 3.085 | H98: 1.25 | I98: 6.525 | J98: 1.575
A99: 2009-11-12 | B99: 0.9 | C99: 0 | D99: 7.1 | E99: 0 | G99: 3.03 | H99: 1.25 | I99: 5.87 | J99: 1.575
A100: 2009-11-14 | B100: 3.6 | C100: 2 | D100: 39.3 | E100: 0 | G100: 3.09 | H100: 1.2 | I100: 8.53 | J100: 1.575
A101: 2009-11-16 | B101: 1.2 | C101: 0 | D101: -33.9 | E101: 0 | G101: 3.055 | H101: 1.2 | I101: 7.785 | J101: 1.575
A102: 2009-11-19 | B102: 4 | C102: 2 | D102: 30 | E102: 4.7 | G102: 3.15 | H102: 1.25 | I102: 6.925 | J102: 1.58
A103: 2009-11-21 | B103: 0.8 | C103: 0 | D103: -32.7 | E103: 0 | G103: 2.82 | H103: 1.05 | I103: 3.705 | J103: 1.375
A104: 2009-11-22 | B104: 3.1 | C104: 0 | D104: -26.5 | E104: 0 | G104: 2.645 | H104: 0.85 | I104: 2.35 | J104: 1.375
A105: 2009-11-25 | B105: 4.5 | C105: 1 | D105: 6.9 | E105: 0 | G105: 2.825 | H105: 0.9 | I105: 2.465 | J105: 1.375
A106: 2009-11-27 | B106: 4.8 | C106: 1 | D106: 24.8 | E106: 4.8 | G106: 2.86 | H106: 0.85 | I106: 5.37 | J106: 1.39
A107: 2009-11-28 | B107: 2 | C107: 1 | D107: 16.6 | E107: 0 | G107: 2.735 | H107: 0.9 | I107: 7.32 | J107: 1.39
A108: 2009-11-30 | B108: 2.4 | C108: 1 | D108: 18.1 | E108: 0 | G108: 2.64 | H108: 0.9 | I108: 7.505 | J108: 1.39
A109: 2009-12-02 | B109: 0 | C109: 0 | D109: -44.6 | E109: 0 | G109: 2.53 | H109: 0.85 | I109: 3.48 | J109: 1.39
A110: 2009-12-04 | B110: 0 | C110: 0 | D110: -60 | E110: 0 | G110: 2.43 | H110: 0.85 | I110: -3.19 | J110: 1.39
A111: 2009-12-05 | B111: 2.7 | C111: 1 | D111: -3.3 | E111: 0 | G111: 2.465 | H111: 0.85 | I111: -0.485 | J111: 1.145
A112: 2009-12-07 | B112: 2.4 | C112: 0 | D112: -37 | E112: 0 | G112: 2.31 | H112: 0.7 | I112: -3.2 | J112: 0.925
A113: 2009-12-09 | B113: 1.8 | C113: 1 | D113: -6.1 | E113: 0 | G113: 2.205 | H113: 0.7 | I113: -5.245 | J113: 0.925
A114: 2009-12-11 | B114: 1 | C114: 0 | D114: -14.3 | E114: 0 | G114: 2.215 | H114: 0.65 | I114: -4.135 | J114: 0.7
A115: 2009-12-13 | B115: 0 | C115: 0 | E115: 0 | G115: 2.01 | H115: 0.55 | J115: 0.475
A116: 2009-12-15 | B116: 4.3 | C116: 1 | D116: -5.3 | E116: 3.8 | G116: 2.13 | H116: 0.55 | J116: 0.665
A117: 2009-12-17 | B117: 2 | C117: 2 | D117: -15 | E117: 0 | G117: 2.125 | H117: 0.65 | J117: 0.665
A118: 2009-12-18 | B118: 2.3 | C118: 0 | D118: 15 | E118: 0 | G118: 2.19 | H118: 0.65 | J118: 0.665
A119: 2009-12-21 | B119: 2.1 | C119: 2 | D119: -45.2 | E119: 4.7 | G119: 2.25 | H119: 0.75 | J119: 0.9
A120: 2009-12-23 | B120: 3.1 | C120: 0 | D120: -12.9 | E120: 0 | G120: 2.225 | H120: 0.65 | J120: 0.9
A121: 2009-12-26 | B121: 5.5 | C121: 2 | D121: 9.6 | E121: 0 | G121: 2.44 | H121: 0.75 | J121: 0.9
A122: 2009-12-28 | B122: 3.4 | C122: 0 | D122: 4.3 | E122: 0 | G122: 2.41 | H122: 0.65 | J122: 0.665
A123: 2009-12-30 | B123: 3.3 | C123: 2 | D123: 9.3 | E123: 0 | G123: 2.535 | H123: 0.75 | J123: 0.665
A124: 2010-01-02 | B124: 9.5 | C124: 2 | D124: 38.8 | E124: 0 | G124: 2.855 | H124: 0.85 | J124: 0.665
A125: 2010-01-06 | B125: 4.6 | C125: 2 | D125: 20 | E125: 0 | G125: 2.86 | H125: 0.9 | J125: 0.665
A126: 2010-01-08 | B126: 2 | C126: 2 | D126: 22.5 | E126: 9 | G126: 2.72 | H126: 0.95 | J126: 0.875
A127: 2010-01-09 | B127: 0.9 | C127: 1 | D127: 1.9 | E127: 0 | G127: 2.665 | H127: 0.95 | J127: 0.875
A128: 2010-01-12 | B128: 1.5 | C128: 2 | D128: 24.1 | E128: 0 | G128: 2.62 | H128: 1 | J128: 0.875
A129: 2010-01-14 | B129: 2.8 | C129: 2 | D129: -16.7 | E129: 0 | G129: 2.76 | H129: 1.1 | J129: 0.875
A130: 2010-01-16 | B130: 5 | C130: 2 | D130: -16.5 | E130: 0 | G130: 3.01 | H130: 1.2 | J130: 0.875
A131: 2010-01-18 | B131: 7.9 | C131: 2 | D131: 38.5 | E131: 0 | G131: 3.27 | H131: 1.25 | J131: 0.875
A132: 2010-01-19 | B132: 0 | C132: 0 | D132: -39.4 | E132: 0 | G132: 3.15 | H132: 1.25 | J132: 0.875
A133: 2010-01-21 | B133: 0.8 | C133: 0 | D133: -61.4 | E133: 6.5 | G133: 3.1 | H133: 1.2 | J133: 1.2
A134: 2010-01-23 | B134: 1.7 | C134: 1 | D134: -9.9 | E134: 0 | G134: 3.135 | H134: 1.25 | J134: 1.2
A135: 2010-01-27 | B135: 1 | C135: 0 | D135: -42.1 | E135: 0 | G135: 3.185 | H135: 1.25 | I135: -4.02 | J135: 1.2
A136: 2010-01-29 | B136: 0.9 | C136: 0 | D136: -59.1 | E136: 0 | G136: 3.015 | H136: 1.2 | I136: -6.71 | J136: 1.01
A137: 2010-01-31 | B137: 0.9 | C137: 0 | D137: -15.5 | E137: 0 | G137: 2.96 | H137: 1.1 | I137: -6.735 | J137: 1.01
A138: 2010-02-02 | B138: 1 | C138: 0 | D138: -19.9 | E138: 0 | G138: 2.895 | H138: 1.1 | I138: -8.48 | J138: 1.01
A139: 2010-02-04 | B139: 1 | C139: 0 | D139: -30 | E139: 3.8 | G139: 2.84 | H139: 1 | I139: -7.72 | J139: 0.965
A140: 2010-02-09 | B140: 3.6 | C140: 0 | D140: 58.4 | E140: 0 | G140: 2.865 | H140: 1 | I140: -4.155 | J140: 0.965
A141: 2010-02-11 | B141: 4.8 | C141: 0 | D141: 40 | E141: 0 | G141: 2.83 | H141: 0.9 | I141: -2.635 | J141: 0.965
A142: 2010-02-13 | B142: 4 | C142: 1 | D142: -3.4 | E142: 4 | G142: 2.86 | H142: 0.95 | I142: -3.02 | J142: 1.165
A143: 2010-02-14 | B143: 1.8 | C143: 0 | D143: 1.7 | E143: 0 | G143: 2.785 | H143: 0.85 | I143: -3.4 | J143: 1.165
A144: 2010-03-02 | B144: 2.9 | C144: 2 | D144: -28.8 | E144: 11 | G144: 2.455 | H144: 0.85 | I144: -6.78 | J144: 1.715
A145: 2010-03-04 | B145: 4.9 | C145: 1 | D145: 50.7 | E145: 3.9 | G145: 2.47 | H145: 0.8 | I145: -5.245 | J145: 1.91
A146: 2010-03-06 | B146: 3.7 | C146: 1 | D146: -11 | E146: 5.5 | G146: 2.555 | H146: 0.75 | I146: -6.92 | J146: 1.735
A147: 2010-03-09 | B147: 1.1 | C147: 0 | D147: -54.9 | E147: 0 | G147: 2.565 | H147: 0.7 | I147: -9.76 | J147: 1.735
A148: 2010-03-11 | B148: 4.8 | C148: 1 | D148: 17.6 | E148: 0 | G148: 2.73 | H148: 0.65 | I148: -10.085 | J148: 1.735
A149: 2010-03-12 | B149: 2.9 | C149: 1 | D149: -15.6 | E149: 0 | G149: 2.735 | H149: 0.6 | I149: -10.03 | J149: 1.735
A150: 2010-03-14 | B150: 0.8 | C150: 0 | D150: 3.4 | E150: 0 | G150: 2.525 | H150: 0.5 | I150: -9.035 | J150: 1.735
A151: 2010-03-16 | B151: 3.3 | C151: 1 | D151: 17.6 | E151: 0 | G151: 2.295 | H151: 0.45 | I151: -10.08 | J151: 1.735
A152: 2010-03-18 | B152: 1.9 | C152: 0 | D152: -17.6 | E152: 0 | G152: 2.39 | H152: 0.45 | I152: -8.99 | J152: =AVERAGE(E133:E152) -> 1.735
A153: 2010-03-20 | B153: 4.2 | C153: 1 | D153: 15.4 | E153: 0 | G153: =AVERAGE(B134:B153) -> 2.56 | H153: 0.5 | I153: -5.15 | J153: 1.41
A154: 2010-03-21 | B154: 2.8 | C154: 0 | D154: 33.4 | E154: 0 | G154: 2.615 | H154: 0.45 | I154: -2.985 | J154: 1.41
A155: 2010-03-23 | B155: 1.8 | C155: 0 | D155: -26.1 | E155: 0 | G155: 2.655 | H155: 0.45 | I155: -2.185 | J155: 1.41
A156: 2010-03-25 | B156: 3.3 | C156: 2 | D156: 16.3 | E156: 4.3 | G156: 2.775 | H156: 0.55 | I156: 1.585 | J156: 1.625
A157: 2010-03-27 | B157: 5.6 | C157: 2 | D157: 21.9 | E157: 0 | G157: 3.01 | H157: 0.65 | I157: 3.455 | J157: 1.625
A158: 2010-03-30 | B158: 0 | C158: 0 | E158: 0 | G158: 2.96 | H158: 0.65 | J158: 1.625
A159: 2010-03-31 | B159: 3.3 | C159: 1 | D159: 48.1 | E159: 0 | G159: 3.075 | H159: 0.7 | J159: 1.435
A160: 2010-04-02 | B160: 3.3 | C160: 0 | D160: 14.3 | E160: 0 | G160: 3.06 | H160: 0.7 | J160: 1.435
A161: 2010-04-06 | B161: 2.7 | C161: 2 | D161: -23.7 | E161: 4.1 | G161: 2.955 | H161: 0.8 | J161: 1.64
A162: 2010-04-08 | B162: 5.9 | C162: 4 | D162: 28.4 | E162: 0 | G162: 3.05 | H162: 0.95 | J162: 1.44
A163: 2010-04-10 | B163: 4.6 | C163: 0 | D163: -10.3 | E163: 0 | G163: 3.19 | H163: 0.95 | J163: 1.44
A164: 2010-04-11 | B164: 4.2 | C164: 2 | D164: 21.2 | E164: 0 | G164: 3.255 | H164: 0.95 | J164: 0.89
A165: 2010-10-09 | B165: 4.8 | C165: 3 | D165: 11.7 | E165: 10.2 | G165: 3.25 | H165: 1.05 | J165: 1.205
A166: 2010-10-13 | B166: 4.9 | C166: 2 | D166: -15.3 | E166: 0 | G166: 3.31 | H166: 1.1 | J166: 0.93
A167: 2010-10-14 | B167: 1 | C167: 1 | D167: 55.9 | E167: 4.5 | G167: 3.305 | H167: 1.15 | J167: 1.155
A168: 2010-10-16 | B168: 6.5 | C168: 2 | D168: 26 | E168: 0 | G168: 3.39 | H168: 1.2 | J168: 1.155
A169: 2010-10-18 | B169: 3.6 | C169: 2 | D169: 7 | E169: 0 | G169: 3.425 | H169: 1.25 | J169: 1.155
A170: 2010-10-21 | B170: 3.6 | C170: 2 | D170: 67.2 | E170: 0 | G170: 3.565 | H170: 1.35 | J170: 1.155
A171: 2010-10-22 | B171: 4.2 | C171: 2 | D171: 25.6 | E171: 5.6 | G171: 3.61 | H171: 1.4 | J171: 1.435
A172: 2010-10-24 | B172: 6.4 | C172: 0 | D172: 3.8 | E172: 0 | G172: 3.835 | H172: 1.4 | J172: 1.435
A173: 2010-10-27 | B173: 3.9 | C173: 0 | D173: 25.2 | E173: 0 | G173: 3.82 | H173: 1.35 | J173: 1.435
A174: 2010-10-30 | B174: 4.9 | C174: 2 | D174: -9.6 | E174: 3.6 | G174: 3.925 | H174: 1.45 | J174: 1.615
A175: 2010-11-03 | B175: 2.4 | C175: 0 | D175: -10.9 | E175: 0 | G175: 3.955 | H175: 1.45 | J175: 1.615
A176: 2010-11-04 | B176: 2 | C176: 0 | D176: 12.8 | E176: 0 | G176: 3.89 | H176: 1.35 | J176: 1.4
A177: 2010-11-06 | B177: 4.5 | C177: 2 | D177: -1.9 | E177: 0 | G177: 3.835 | H177: 1.35 | J177: 1.4
A178: 2010-11-09 | B178: 7.1 | C178: 2 | D178: 11.7 | E178: 3.4 | G178: 4.19 | H178: 1.45 | I178: 14.36 | J178: 1.57
A179: 2010-11-11 | B179: 5.3 | C179: 1 | D179: -8.5 | E179: 3.3 | G179: 4.29 | H179: 1.45 | I179: 11.53 | J179: 1.735
A180: 2010-11-12 | B180: 0.9 | C180: 0 | D180: -8.6 | E180: 0 | G180: 4.17 | H180: 1.45 | I180: 10.385 | J180: 1.735
A181: 2010-11-14 | B181: 5.2 | C181: 1 | D181: 20.5 | E181: 0 | G181: 4.295 | H181: 1.4 | I181: 12.595 | J181: 1.53
A182: 2010-11-17 | B182: 3.4 | C182: 0 | D182: 25.7 | E182: 0 | G182: 4.17 | H182: 1.2 | I182: 12.46 | J182: 1.53
A183: 2010-11-18 | B183: 1.1 | C183: 0 | D183: -15.4 | E183: 4.5 | G183: 3.995 | H183: 1.2 | I183: 12.205 | J183: 1.755
A184: 2010-11-20 | B184: 3.2 | C184: 3 | D184: -3.6 | E184: 0 | G184: 3.945 | H184: 1.25 | I184: 10.965 | J184: 1.755
A185: 2010-11-22 | B185: 7.3 | C185: 3 | D185: -37.9 | E185: 3.5 | G185: 4.07 | H185: 1.25 | I185: 8.485 | J185: 1.42
A186: 2010-11-24 | B186: 1 | C186: 1 | D186: -39.8 | E186: 5 | G186: 3.875 | H186: 1.2 | I186: 7.26 | J186: 1.67
A187: 2010-11-26 | B187: 3.1 | C187: 1 | D187: 24.3 | E187: 0 | G187: 3.98 | H187: 1.2 | I187: 5.68 | J187: 1.445
A188: 2010-11-27 | B188: 0.7 | C188: 0 | D188: 32.6 | E188: 0 | G188: 3.69 | H188: 1.1 | I188: 6.01 | J188: 1.445
A189: 2010-11-30 | B189: 3 | C189: 1 | D189: -17.4 | E189: 0 | G189: 3.66 | H189: 1.05 | I189: 4.79 | J189: 1.445
A190: 2010-12-02 | B190: 10.2 | C190: 4 | D190: 14 | E190: 0 | G190: 3.99 | H190: 1.15 | I190: 2.13 | J190: 1.445
A191: 2010-12-04 | B191: 2 | C191: 0 | D191: -63 | E191: 0 | G191: 3.88 | H191: 1.05 | I191: -2.3 | J191: 1.165
A192: 2010-12-07 | B192: 0 | C192: 0 | D192: -70.6 | E192: 0 | G192: 3.56 | H192: 1.05 | I192: -6.02 | J192: 1.165
A193: 2010-12-10 | B193: 9.7 | C193: 4 | D193: -7.8 | E193: 3.4 | G193: 3.85 | H193: 1.25 | I193: -7.67 | J193: 1.335
A194: 2010-12-11 | B194: 1 | C194: 1 | D194: -3.1 | E194: 4.1 | G194: 3.655 | H194: 1.2 | I194: -7.345 | J194: 1.36
A195: 2010-12-15 | B195: 2.5 | C195: 2 | D195: -25.8 | E195: 0 | G195: 3.66 | H195: 1.3 | I195: -8.09 | J195: 1.36
A196: 2010-12-18 | B196: 3.1 | C196: 1 | D196: -31.8 | E196: 5.1 | G196: 3.715 | H196: 1.35 | I196: -10.32 | J196: 1.615
A197: 2010-12-20 | B197: 4.6 | C197: 2 | D197: -13.6 | E197: 0 | G197: 3.72 | H197: 1.35 | I197: -10.905 | J197: 1.615
A198: 2010-12-22 | B198: 2.9 | C198: 2 | D198: 12.6 | E198: 0 | G198: 3.51 | H198: 1.35 | I198: -10.86 | J198: 1.445
A199: 2010-12-23 | B199: 3 | C199: 2 | D199: 7 | E199: 3.4 | G199: 3.395 | H199: 1.4 | I199: -10.085 | J199: 1.45
A200: 2010-12-26 | B200: 4.1 | C200: 3 | D200: -10.3 | E200: 5.2 | G200: 3.555 | H200: 1.55 | I200: -10.17 | J200: 1.71
A201: 2010-12-28 | B201: 6.1 | C201: 0 | D201: 19.8 | E201: 0 | G201: 3.6 | H201: 1.5 | I201: -10.205 | J201: 1.71
... 426 more rows

Sheet HSC (2)
H1: stuff | I1: Game ID | J1: Team | K1: Date | L1: CF | M1: iCF | N1: TOI | O1: SF%Rel | P1: CF%Rel
H2: L.A20004 | I2: 20004 | J2: L.A | K2: =VLOOKUP(H2,[1]Sheet5!$N:$Q,4,FALSE) -> 2015-10-07 | L2: 6.6 | M2: 1 | N2: 13.9 | O2: 9.1 | P2: -2.4 | R2: 19.7 | S2: 5 | T2: 25.1 | U2: -12.8 | V2: -5.8
H3: L.A20045 | I3: 20045 | J3: L.A | K3: =VLOOKUP(H3,[1]Sheet5!$N:$Q,4,FALSE) -> 2015-10-13 | L3: 18.8 | M3: 4 | N3: 18.8 | O3: 24.4 | P3: 9.8 | R3: 17.6 | S3: 4 | T3: 23.2 | U3: 8.2 | V3: 10.8
A4: Row Labels | B4: Average of CF | C4: Average of iCF | D4: Average of TOI | E4: Average of SF%Rel | F4: Average of CF%Rel | H4: L.A20064 | I4: 20064 | J4: L.A | K4: =VLOOKUP(H4,[1]Sheet5!$N:$Q,4,FALSE) -> 2015-10-16 | L4: 20.3 | M4: 5 | N4: 17.6 | O4: 4.1 | P4: -0.3 | R4: 23.4 | S4: 6 | T4: 27.4 | U4: -2.7 | V4: 18.9
A5: Erik.Karlsson | B5: 19 | C5: 4.589322382 | D5: 19.1238193 | E5: 3.212936345 | F5: 4.322997947 | H5: L.A20079 | I5: 20079 | J5: L.A | K5: =VLOOKUP(H5,[1]Sheet5!$N:$Q,4,FALSE) -> 2015-10-18 | L5: 20.1 | M5: 4 | N5: 18.5 | O5: -33.4 | P5: -24.8
A6: 2009-10-03 | B6: 14.6 | C6: 5 | D6: 14.2 | E6: 5.1 | F6: -14.3 | H6: L.A20099 | I6: 20099 | J6: L.A | K6: =VLOOKUP(H6,[1]Sheet5!$N:$Q,4,FALSE) -> 2015-10-22 | L6: 16.9 | M6: 4 | N6: 17.7 | O6: -21.2 | P6: -24
A7: 2009-10-06 | B7: 7.7 | C7: 2 | D7: 17.5 | E7: -44.8 | F7: -29.3 | H7: L.A20120 | I7: 20120 | J7: L.A | K7: =VLOOKUP(H7,[1]Sheet5!$N:$Q,4,FALSE) -> 2015-10-25 | L7: 21.3 | M7: 3 | N7: 20.6 | O7: 28.2 | P7: 16.4
A8: 2009-10-08 | B8: 11.8 | C8: 2 | D8: 15.8 | E8: -11 | F8: -7.6 | H8: L.A20170 | I8: 20170 | J8: L.A | K8: =VLOOKUP(H8,[1]Sheet5!$N:$Q,4,FALSE) -> 2015-11-02 | L8: 26.9 | M8: 5 | N8: 27.6 | O8: -3.2 | P8: 3.5
A9: 2009-10-10 | B9: 15.1 | C9: 3 | D9: 16.3 | E9: -3.9 | F9: 1.9 | H9: L.A20353 | I9: 20353 | J9: L.A | K9: =VLOOKUP(H9,[1]Sheet5!$N:$Q,4,FALSE) -> 2015-11-28 | L9: 24.6 | M9: 4 | N9: 26 | O9: 17.6 | P9: 22.9
A10: 2009-10-12 | B10: 9.8 | C10: 2 | D10: 13.2 | E10: -21.2 | F10: -14.5 | H10: L.A20794 | I10: 20794 | J10: L.A | K10: =VLOOKUP(H10,[1]Sheet5!$N:$Q,4,FALSE) -> 2016-02-09 | L10: 26 | M10: 6 | N10: 20.7 | O10: -10.1 | P10: 4
A11: 2009-10-15 | B11: 15.2 | C11: 4 | D11: 13.5 | E11: -8.8 | F11: 9.5 | H11: OTT20019 | I11: 20019 | J11: OTT | K11: =VLOOKUP(H11,[1]Sheet5!$N:$Q,4,FALSE) -> 2015-10-10 | L11: 16 | M11: 1 | N11: 18.9 | O11: 21.9 | P11: 10.3
A12: 2009-10-17 | B12: 12.6 | C12: 3 | D12: 10.7 | E12: 36.3 | F12: 28 | H12: OTT20031 | I12: 20031 | J12: OTT | K12: =VLOOKUP(H12,[1]Sheet5!$N:$Q,4,FALSE) -> 2015-10-11 | L12: 12.4 | M12: 2 | N12: 17.1 | O12: 3.4 | P12: -3.6
A13: 2009-10-22 | B13: 5.3 | C13: 0 | D13: 11.8 | E13: -1.9 | F13: 2.7 | H13: OTT20046 | I13: 20046 | J13: OTT | K13: =VLOOKUP(H13,[1]Sheet5!$N:$Q,4,FALSE) -> 2015-10-14 | L13: 19.6 | M13: 5 | N13: 17 | O13: 21.4 | P13: 11.6
A14: 2009-10-24 | B14: 6.9 | C14: 2 | D14: 11.7 | E14: -11.1 | F14: -14.8 | H14: OTT20066 | I14: 20066 | J14: OTT | K14: =VLOOKUP(H14,[1]Sheet5!$N:$Q,4,FALSE) -> 2015-10-17 | L14: 25 | M14: 4 | N14: 20.1 | O14: 22 | P14: 18.7
A15: 2009-11-28 | B15: 6 | C15: 1 | D15: 11.6 | E15: 12.6 | F15: -4 | H15: OTT20094 | I15: 20094 | J15: OTT | K15: =VLOOKUP(H15,[1]Sheet5!$N:$Q,4,FALSE) -> 2015-10-22 | L15: 10.2 | M15: 2 | N15: 16.4 | O15: -7.2 | P15: -12.9
A16: 2009-12-01 | B16: 10.6 | C16: 0 | D16: 15.4 | E16: -26.1 | F16: -10.8 | H16: OTT20109 | I16: 20109 | J16: OTT | K16: =VLOOKUP(H16,[1]Sheet5!$N:$Q,4,FALSE) -> 2015-10-24 | L16: 21.9 | M16: 4 | N16: 17.7 | O16: 21.9 | P16: 6.1
A17: 2009-12-03 | B17: 18.9 | C17: 2 | D17: 19.1 | E17: 6.2 | F17: 21.9 | H17: OTT20149 | I17: 20149 | J17: OTT | K17: =VLOOKUP(H17,[1]Sheet5!$N:$Q,4,FALSE) -> 2015-10-30 | L17: 18.7 | M17: 3 | N17: 14.5 | O17: 20.3 | P17: 17.3
A18: 2009-12-05 | B18: 14.4 | C18: 5 | D18: 14.6 | E18: -27.5 | F18: -1.7 | H18: OTT20376 | I18: 20376 | J18: OTT | K18: =VLOOKUP(H18,[1]Sheet5!$N:$Q,4,FALSE) -> 2015-12-03 | L18: 22 | M18: 2 | N18: 22.8 | O18: 19.6 | P18: 23.8
A19: 2009-12-06 | B19: 12.5 | C19: 0 | D19: 12.7 | E19: 29 | F19: 17.8 | H19: OTT20495 | I19: 20495 | J19: OTT | K19: =VLOOKUP(H19,[1]Sheet5!$N:$Q,4,FALSE) -> 2015-12-20 | L19: 14.8 | M19: 5 | N19: 24.8 | O19: 19.6 | P19: 13.5
A20: 2009-12-08 | B20: 18.8 | C20: 2 | D20: 15.4 | E20: 19.2 | F20: 21.1 | H20: OTT20553 | I20: 20553 | J20: OTT | K20: =VLOOKUP(H20,[1]Sheet5!$N:$Q,4,FALSE) -> 2015-12-30 | L20: 19.8 | M20: 8 | N20: 19.9 | O20: 6.8 | P20: 1.7
A21: 2009-12-10 | B21: 13.4 | C21: 1 | D21: 13 | E21: -14.2 | F21: -2.6 | H21: OTT20581 | I21: 20581 | J21: OTT | K21: =VLOOKUP(H21,[1]Sheet5!$N:$Q,4,FALSE) -> 2016-01-03 | L21: 19.7 | M21: 5 | N21: 25.1 | O21: -12.8 | P21: -5.8
A22: 2009-12-12 | B22: 17.1 | C22: 0 | D22: 16.1 | E22: 14.7 | F22: 9.4 | H22: OTT20645 | I22: 20645 | J22: OTT | K22: =VLOOKUP(H22,[1]Sheet5!$N:$Q,4,FALSE) -> 2016-01-13 | L22: 17.6 | M22: 4 | N22: 23.2 | O22: 8.2 | P22: 10.8
A23: 2009-12-14 | B23: 9.5 | C23: 4 | D23: 16.9 | E23: -13.8 | F23: -17.4 | H23: OTT20681 | I23: 20681 | J23: OTT | K23: =VLOOKUP(H23,[1]Sheet5!$N:$Q,4,FALSE) -> 2016-01-18 | L23: 23.4 | M23: 6 | N23: 27.4 | O23: -2.7 | P23: 18.9
A24: 2009-12-16 | B24: 12.7 | C24: 3 | D24: 15.2 | E24: 8.8 | F24: 5.8 | H24: S.J20004 | I24: 20004 | J24: S.J | K24: =VLOOKUP(H24,[1]Sheet5!$N:$Q,4,FALSE) -> 2015-10-07 | L24: 21.5 | M24: 6 | N24: 14.3 | O24: 44.3 | P24: 45.5
A25: 2009-12-18 | B25: 3.5 | C25: 0 | D25: 12 | E25: -22.1 | F25: -17.9 | H25: S.J20030 | I25: 20030 | J25: S.J | K25: =VLOOKUP(H25,[1]Sheet5!$N:$Q,4,FALSE) -> 2015-10-10 | L25: 27.8 | M25: 6 | N25: 21.9 | O25: -6 | P25: -13.5
A26: 2009-12-19 | B26: 14.6 | C26: 3 | D26: 11.9 | E26: -0.5 | F26: 12.1 | H26: S.J20040 | I26: 20040 | J26: S.J | K26: =VLOOKUP(H26,[1]Sheet5!$N:$Q,4,FALSE) -> 2015-10-13 | L26: 16.2 | M26: 4 | N26: 14.6 | O26: -13.8 | P26: 3.9
A27: 2009-12-21 | B27: 11.4 | C27: 4 | D27: 16.1 | E27: -14.3 | F27: -9.7 | H27: S.J20058 | I27: 20058 | J27: S.J | K27: =VLOOKUP(H27,[1]Sheet5!$N:$Q,4,FALSE) -> 2015-10-16 | L27: 16.3 | M27: 4 | N27: 21.8 | O27: -3.7 | P27: 2.9
A28: 2009-12-23 | B28: 16.5 | C28: 2 | D28: 9 | E28: 12.9 | F28: 8.8 | H28: S.J20071 | I28: 20071 | J28: S.J | K28: =VLOOKUP(H28,[1]Sheet5!$N:$Q,4,FALSE) -> 2015-10-17 | L28: 24.6 | M28: 10 | N28: 22.1 | O28: 6.1 | P28: 21.8
A29: 2009-12-31 | B29: 12.6 | C29: 3 | D29: 15.6 | E29: -3.5 | F29: -1.1 | H29: S.J20080 | I29: 20080 | J29: S.J | K29: =VLOOKUP(H29,[1]Sheet5!$N:$Q,4,FALSE) -> 2015-10-19 | L29: 24.5 | M29: 9 | N29: 25.2 | O29: 8 | P29: 4.7
A30: 2010-01-03 | B30: 17.4 | C30: 4 | D30: 15.7 | E30: 20.7 | F30: 9.3 | H30: S.J20099 | I30: 20099 | J30: S.J | K30: =VLOOKUP(H30,[1]Sheet5!$N:$Q,4,FALSE) -> 2015-10-22 | L30: 17.3 | M30: 6 | N30: 19 | O30: 3.6 | P30: -3.2
A31: 2010-01-05 | B31: 7.7 | C31: 3 | D31: 17.4 | E31: -31.4 | F31: -19.7 | H31: S.J20117 | I31: 20117 | J31: S.J | K31: =VLOOKUP(H31,[1]Sheet5!$N:$Q,4,FALSE) -> 2015-10-24 | L31: 11.4 | M31: 1 | N31: 18.6 | O31: -2.4 | P31: 7.7
A32: 2010-01-07 | B32: 14.1 | C32: 6 | D32: 17.8 | E32: 13.9 | F32: 7.5 | H32: S.J20155 | I32: 20155 | J32: S.J | K32: =VLOOKUP(H32,[1]Sheet5!$N:$Q,4,FALSE) -> 2015-10-31 | L32: 9.2 | M32: 3 | N32: 18.1 | O32: -23.1 | P32: -11.9
A33: 2010-01-09 | B33: 15.2 | C33: 2 | D33: 14.2 | E33: 11.8 | F33: 29 | H33: S.J20180 | I33: 20180 | J33: S.J | K33: =VLOOKUP(H33,[1]Sheet5!$N:$Q,4,FALSE) -> 2015-11-03 | L33: 17.8 | M33: 10 | N33: 15.7 | O33: -19.8 | P33: 4.1
A34: 2010-01-10 | B34: 11 | C34: 3 | D34: 19.2 | E34: -9.9 | F34: -8.3 | H34: S.J20193 | I34: 20193 | J34: S.J | K34: =VLOOKUP(H34,[1]Sheet5!$N:$Q,4,FALSE) -> 2015-11-05 | L34: 20.9 | M34: 6 | N34: 21.9 | O34: 7.3 | P34: 13.7
A35: 2010-01-12 | B35: 12.9 | C35: 1 | D35: 16.1 | E35: 18.5 | F35: 11.2 | H35: S.J20210 | I35: 20210 | J35: S.J | K35: =VLOOKUP(H35,[1]Sheet5!$N:$Q,4,FALSE) -> 2015-11-07 | L35: 13.6 | M35: 5 | N35: 24.3 | O35: -16.6 | P35: -18
A36: 2010-01-14 | B36: 14.4 | C36: 5 | D36: 15.8 | E36: -19.1 | F36: -10.7 | H36: S.J20244 | I36: 20244 | J36: S.J | K36: =VLOOKUP(H36,[1]Sheet5!$N:$Q,4,FALSE) -> 2015-11-13 | L36: 9.7 | M36: 4 | N36: 22.1 | O36: -25.8 | P36: -5.2
A37: 2010-01-16 | B37: 13 | C37: 2 | D37: 14.3 | E37: 7.3 | F37: 1 | H37: S.J20248 | I37: 20248 | J37: S.J | K37: =VLOOKUP(H37,[1]Sheet5!$N:$Q,4,FALSE) -> 2015-11-14 | L37: 10.7 | M37: 4 | N37: 22.3 | O37: -39 | P37: -36.8
A38: 2010-01-18 | B38: 21.8 | C38: 7 | D38: 15.2 | E38: 20.9 | F38: 29 | H38: S.J20267 | I38: 20267 | J38: S.J | K38: =VLOOKUP(H38,[1]Sheet5!$N:$Q,4,FALSE) -> 2015-11-17 | L38: 17.9 | M38: 5 | N38: 20.1 | O38: 9.3 | P38: 0.1
A39: 2010-01-19 | B39: 7.3 | C39: 1 | D39: 14.2 | E39: -6.9 | F39: -6.1 | H39: S.J20329 | I39: 20329 | J39: S.J | K39: =VLOOKUP(H39,[1]Sheet5!$N:$Q,4,FALSE) -> 2015-11-25 | L39: 11.6 | M39: 3 | N39: 19.2 | O39: 18.7 | P39: 4.8
A40: 2010-01-21 | B40: 18.9 | C40: 3 | D40: 18 | E40: -10.7 | F40: 5.1 | H40: S.J20469 | I40: 20469 | J40: S.J | K40: =VLOOKUP(H40,[1]Sheet5!$N:$Q,4,FALSE) -> 2015-12-17 | L40: 23.7 | M40: 8 | N40: 20.7 | O40: 8 | P40: 0.1
A41: 2010-01-23 | B41: 19.9 | C41: 2 | D41: 23 | E41: 17.5 | F41: 21.4 | H41: S.J20498 | I41: 20498 | J41: S.J | K41: =VLOOKUP(H41,[1]Sheet5!$N:$Q,4,FALSE) -> 2015-12-20 | L41: 18.9 | M41: 6 | N41: 24.5 | O41: -19.5 | P41: -6.6
A42: 2010-01-26 | B42: 23.3 | C42: 6 | D42: 17.9 | E42: 25.4 | F42: 5.5 | H42: S.J20653 | I42: 20653 | J42: S.J | K42: =VLOOKUP(H42,[1]Sheet5!$N:$Q,4,FALSE) -> 2016-01-14 | L42: 9.5 | M42: 5 | N42: 18 | O42: 2.5 | P42: -5.6 | R42: 9.5 | S42: 5 | T42: 18 | U42: 2.5 | V42: -5.6
A43: 2010-01-28 | B43: 21.9 | C43: 5 | D43: 18.1 | E43: 16.6 | F43: 22.7 | H43: S.J20669 | I43: 20669 | J43: S.J | K43: =VLOOKUP(H43,[1]Sheet5!$N:$Q,4,FALSE) -> 2016-01-16 | L43: 23.8 | M43: 10 | N43: 22.9 | O43: 13.9 | P43: 6.6 | R43: 23.8 | S43: 10 | T43: 22.9 | U43: 13.9 | V43: 6.6
A44: 2010-01-30 | B44: 25.2 | C44: 2 | D44: 22.5 | E44: 26.3 | F44: 19.4 | H44: S.J20681 | I44: 20681 | J44: S.J | K44: =VLOOKUP(H44,[1]Sheet5!$N:$Q,4,FALSE) -> 2016-01-18 | L44: 23.2 | M44: 8 | N44: 23.8 | O44: 0.5 | P44: -16.8 | R44: 23.2 | S44: 8 | T44: 23.8 | U44: 0.5 | V44: -16.8
A45: 2010-02-04 | B45: 15 | C45: 1 | D45: 13.9 | E45: 39.6 | F45: 20.8
A46: 2010-03-02 | B46: 21.1 | C46: 7 | D46: 22 | E46: -1.8 | F46: 2.1
A47: 2010-03-04 | B47: 21.3 | C47: 5 | D47: 19.9 | E47: 15.1 | F47: 18.8
A48: 2010-03-06 | B48: 10.2 | C48: 2 | D48: 14.7 | E48: 2.3 | F48: -1
A49: 2010-03-09 | B49: 19.4 | C49: 4 | D49: 12.4 | E49: 29.8 | F49: 16.3
A50: 2010-03-11 | B50: 20.7 | C50: 4 | D50: 14.2 | E50: 13.6 | F50: 10.2
A51: 2010-03-13 | B51: 5.5 | C51: 1 | D51: 14.1 | E51: -21.9 | F51: -8.3
A52: 2010-03-16 | B52: 18.6 | C52: 3 | D52: 18.8 | E52: -12.3 | F52: 5.1
A53: 2010-03-18 | B53: 21.1 | C53: 5 | D53: 16 | E53: -3.7 | F53: -7.3
A54: 2010-03-20 | B54: 11 | C54: 3 | D54: 14.9 | E54: -24.4 | F54: -9.5
A55: 2010-03-22 | B55: 21.8 | C55: 1 | D55: 19.8 | E55: 9.5 | F55: 5.5
A56: 2010-03-23 | B56: 8.7 | C56: 2 | D56: 10.8 | E56: -5.5 | F56: -14
A57: 2010-03-26 | B57: 14.8 | C57: 3 | D57: 16.7 | E57: -8.2 | F57: -6.1
A58: 2010-03-27 | B58: 23.2 | C58: 5 | D58: 19.2 | E58: 34.6 | F58: 24.2
A59: 2010-03-30 | B59: 17 | C59: 3 | D59: 18.3 | E59: -5.9 | F59: 3
A60: 2010-04-01 | B60: 17.3 | C60: 4 | D60: 17.1 | E60: 34.2 | F60: 22.8
A61: 2010-04-03 | B61: 10.7 | C61: 2 | D61: 17.9 | E61: -13.3 | F61: -16.7
A62: 2010-04-06 | B62: 15 | C62: 4 | D62: 16.6 | E62: -7.4 | F62: 0.3
A63: 2010-04-08 | B63: 14.9 | C63: 4 | D63: 14.4 | E63: -12.2 | F63: -7.8
A64: 2010-04-10 | B64: 9.6 | C64: 3 | D64: 12.9 | E64: 9.4 | F64: 3
A65: 2010-04-14 | B65: 14.1 | C65: 4 | D65: 16 | E65: -2.4 | F65: -4.6
A66: 2010-04-16 | B66: 15.3 | C66: 2 | D66: 20.3 | E66: 14.4 | F66: 5.8
A67: 2010-04-18 | B67: 18.3 | C67: 2 | D67: 16.6 | E67: 5.8 | F67: 17.1
A68: 2010-04-20 | B68: 14.8 | C68: 1 | D68: 14.1 | E68: 24.7 | F68: 21.7
A69: 2010-04-22 | B69: 32.7 | C69: 7 | D69: 30.7 | E69: 26.8 | F69: 8.7
A70: 2010-04-24 | B70: 18.4 | C70: 4 | D70: 20.8 | E70: 3.1 | F70: 10.3
A71: 2010-10-08 | B71: 9.7 | C71: 1 | D71: 14.1 | E71: -18.9 | F71: -19.4
A72: 2010-10-09 | B72: 16.2 | C72: 2 | D72: 15.6 | E72: 11.7 | F72: 17.5
A73: 2010-10-11 | B73: 13 | C73: 5 | D73: 11.9 | E73: -6 | F73: 5.2
A74: 2010-10-14 | B74: 25.4 | C74: 2 | D74: 16.2 | E74: 3.8 | F74: 14.1
A75: 2010-10-16 | B75: 7.8 | C75: 1 | D75: 14.2 | E75: 24.8 | F75: 0.4
A76: 2010-10-18 | B76: 16.3 | C76: 6 | D76: 21.9 | E76: -26 | F76: -12.2
A77: 2010-10-22 | B77: 14.2 | C77: 1 | D77: 16.7 | E77: 0.5 | F77: 17.6
A78: 2010-10-23 | B78: 9.9 | C78: 2 | D78: 17.6 | E78: 11.6 | F78: 3.1
A79: 2010-10-26 | B79: 13.5 | C79: 1 | D79: 16.6 | E79: -12.7 | F79: -4.5
A80: 2010-10-28 | B80: 16.2 | C80: 3 | D80: 19.4 | E80: 6.6 | F80: 10.4
A81: 2010-10-30 | B81: 16 | C81: 3 | D81: 19.6 | E81: -5.8 | F81: -6.3
A82: 2010-11-02 | B82: 8.5 | C82: 2 | D82: 14 | E82: 2.2 | F82: -0.2
A83: 2010-11-04 | B83: 18.2 | C83: 2 | D83: 16.4 | E83: 5 | F83: 14.4
A84: 2010-11-06 | B84: 18.1 | C84: 3 | D84: 16.5 | E84: 31.4 | F84: 34
A85: 2010-11-09 | B85: 19.1 | C85: 5 | D85: 19.7 | E85: -2.4 | F85: 6.3
A86: 2010-11-11 | B86: 12.2 | C86: 4 | D86: 15.9 | E86: -12.1 | F86: -21
A87: 2010-11-13 | B87: 16.6 | C87: 2 | D87: 18.8 | E87: 13.7 | F87: 8.7
A88: 2010-11-15 | B88: 25.4 | C88: 10 | D88: 22.1 | E88: 5.9 | F88: 9.3
A89: 2010-11-17 | B89: 9.7 | C89: 2 | D89: 13.8 | E89: -14.9 | F89: -32.9
A90: 2010-11-19 | B90: 5.9 | C90: 1 | D90: 12.1 | E90: -17.1 | F90: -14.1
A91: 2010-11-26 | B91: 25.8 | C91: 5 | D91: 18.2 | E91: 35.4 | F91: 21.3
A92: 2010-11-27 | B92: 13.9 | C92: 2 | D92: 20.2 | E92: -23.3 | F92: -29.7
A93: 2010-11-29 | B93: 17.3 | C93: 2 | D93: 20 | E93: -16.7 | F93: 15.2
A94: 2010-12-02 | B94: 5.9 | C94: 3 | D94: 17.6 | E94: -23 | F94: -20.2
A95: 2010-12-04 | B95: 19.2 | C95: 5 | D95: 19 | E95: 11.6 | F95: 2.7
A96: 2010-12-05 | B96: 24.5 | C96: 2 | D96: 17.4 | E96: 0.6 | F96: 7.5
A97: 2010-12-07 | B97: 12.9 | C97: 4 | D97: 18.8 | E97: -17.4 | F97: -1.7
A98: 2010-12-09 | B98: 21.5 | C98: 4 | D98: 18.7 | E98: 33.8 | F98: 23
A99: 2010-12-10 | B99: 17.9 | C99: 3 | D99: 17 | E99: 21.8 | F99: 28
A100: 2010-12-13 | B100: 23.8 | C100: 4 | D100: 26.9 | E100: -18.9 | F100: -5.9
A101: 2010-12-16 | B101: 22.9 | C101: 5 | D101: 18.9 | E101: 12.7 | F101: 20.5
A102: 2010-12-17 | B102: 18.5 | C102: 6 | D102: 17.7 | E102: -3.5 | F102: 9.2
A103: 2010-12-19 | B103: 13.5 | C103: 6 | D103: 16.5 | E103: 5.2 | F103: 21.5
A104: 2010-12-23 | B104: 15.8 | C104: 4 | D104: 14.1 | E104: -3.7 | F104: 9.6
A105: 2010-12-26 | B105: 14.3 | C105: 0 | D105: 17.8 | E105: 17.7 | F105: 12
A106: 2010-12-29 | B106: 17.5 | C106: 6 | D106: 17.1 | E106: -11.2 | F106: -4.6
A107: 2010-12-31 | B107: 15.3 | C107: 2 | D107: 21.2 | E107: -20.5 | F107: -20.8
A108: 2011-01-01 | B108: 8.3 | C108: 1 | D108: 11.1 | E108: -19.3 | F108: -8.6
A109: 2011-01-07 | B109: 13.9 | C109: 6 | D109: 21.2 | E109: -4.9 | F109: -1.4
A110: 2011-01-08 | B110: 14.2 | C110: 6 | D110: 16.2 | E110: -31.3 | F110: -24.3
A111: 2011-01-11 | B111: 16.6 | C111: 4 | D111: 15.2 | E111: 6.5 | F111: 4.7
A112: 2011-01-13 | B112: 14.5 | C112: 1 | D112: 21.6 | E112: -24.3 | F112: -25.2
A113: 2011-01-14 | B113: 13.2 | C113: 6 | D113: 15.9 | E113: -2.8 | F113: 2.5
A114: 2011-01-16 | B114: 16.4 | C114: 2 | D114: 22.5 | E114: -23 | F114: -10.1
A115: 2011-01-18 | B115: 14.1 | C115: 3 | D115: 19 | E115: -19.6 | F115: -13.9
A116: 2011-01-20 | B116: 18 | C116: 3 | D116: 19.6 | E116: 32.5 | F116: 8.7
A117: 2011-01-21 | B117: 14.8 | C117: 2 | D117: 20 | E117: -14.1 | F117: -11.2
A118: 2011-01-25 | B118: 15.5 | C118: 4 | D118: 18.6 | E118: -14.1 | F118: 3.9
A119: 2011-02-01 | B119: 9.9 | C119: 2 | D119: 14.8 | E119: -9.6 | F119: -12.6
A120: 2011-02-02 | B120: 14 | C120: 5 | D120: 20.5 | E120: -15.5 | F120: -16.7
A121: 2011-02-05 | B121: 17.1 | C121: 3 | D121: 12.3 | E121: 24.4 | F121: 29.5
A122: 2011-02-07 | B122: 13.6 | C122: 2 | D122: 16.3 | E122: -3.6 | F122: -7.3
A123: 2011-02-09 | B123: 17.5 | C123: 3 | D123: 16.4 | E123: -19.4 | F123: 0.7
A124: 2011-02-12 | B124: 10.6 | C124: 3 | D124: 12.5 | E124: 5.2 | F124: 23.4
A125: 2011-02-15 | B125: 17 | C125: 4 | D125: 21.1 | E125: -14.4 | F125: -4.9
A126: 2011-02-18 | B126: 17.1 | C126: 3 | D126: 17.3 | E126: -12.7 | F126: -2.3
A127: 2011-02-19 | B127: 15.4 | C127: 4 | D127: 15.4 | E127: 5.9 | F127: 11.4
A128: 2011-02-25 | B128: 10.2 | C128: 0 | D128: 12.9 | E128: -7.6 | F128: 2.1
A129: 2011-02-26 | B129: 16.1 | C129: 5 | D129: 17.6 | E129: 5.3 | F129: 7.2
A130: 2011-03-01 | B130: 21.1 | C130: 4 | D130: 14.8 | E130: 21.5 | F130: 21.1
A131: 2011-03-03 | B131: 14.7 | C131: 1 | D131: 20.8 | E131: -20.7 | F131: -15.9
A132: 2011-03-04 | B132: 16.3 | C132: 10 | D132: 16.5 | E132: -3.6 | F132: 1.5
A133: 2011-03-08 | B133: 15.8 | C133: 4 | D133: 17 | E133: 8.8 | F133: 6.2
A134: 2011-03-10 | B134: 17.4 | C134: 7 | D134: 14.9 | E134: -4.8 | F134: 4.4
A135: 2011-03-11 | B135: 17.9 | C135: 5 | D135: 11.8 | E135: 28.2 | F135: 30.9
A136: 2011-03-13 | B136: 16.1 | C136: 8 | D136: 18.8 | E136: -15.5 | F136: -12.8
A137: 2011-03-15 | B137: 10.2 | C137: 3 | D137: 15.7 | E137: -2.3 | F137: -11.3
A138: 2011-03-17 | B138: 16.1 | C138: 4 | D138: 21.5 | E138: 17.4 | F138: -1.3
A139: 2011-03-19 | B139: 28 | C139: 8 | D139: 23.2 | E139: 12.8 | F139: 4.4
A140: 2011-03-22 | B140: 28.9 | C140: 4 | D140: 18.7 | E140: 23.3 | F140: 29.5
A141: 2011-03-24 | B141: 19.7 | C141: 1 | D141: 21.6 | E141: 19.3 | F141: 4.4
A142: 2011-03-25 | B142: 16.3 | C142: 5 | D142: 18.5 | E142: -5.9 | F142: 2.6
A143: 2011-03-27 | B143: 19.6 | C143: 2 | D143: 22.4 | E143: 8.3 | F143: 12.9
A144: 2011-03-29 | B144: 21.5 | C144: 5 | D144: 17.2 | E144: 19.4 | F144: 10.5
A145: 2011-03-31 | B145: 3 | C145: 1 | D145: 4.1 | E145: 11.4 | F145: -10.3
A146: 2011-10-07 | B146: 18.7 | C146: 3 | D146: 17.2 | E146: -1 | F146: 8.3
A147: 2011-10-08 | B147: 17.9 | C147: 1 | D147: 14.2 | E147: -2.5 | F147: -1.6
A148: 2011-10-11 | B148: 14.1 | C148: 3 | D148: 19.5 | E148: 25.1 | F148: -0.9
A149: 2011-10-13 | B149: 10.1 | C149: 4 | D149: 16.4 | E149: -2.8 | F149: -9.1
A150: 2011-10-15 | B150: 15.4 | C150: 3 | D150: 21.8 | E150: 8.3 | F150: -6.4
A151: 2011-10-18 | B151: 12.7 | C151: 4 | D151: 16.4 | E151: 16.1 | F151: -11.5
A152: 2011-10-20 | B152: 14.1 | C152: 6 | D152: 15.3 | E152: 1.4 | F152: 11.9
A153: 2011-10-22 | B153: 18.4 | C153: 5 | D153: 21.8 | E153: -15.1 | F153: 6.5
A154: 2011-10-25 | B154: 23.6 | C154: 7 | D154: 22.9 | E154: -16.3 | F154: -12.2
A155: 2011-10-27 | B155: 15.4 | C155: 4 | D155: 15.7 | E155: -6.4 | F155: -0.8
A156: 2011-10-29 | B156: 23.5 | C156: 5 | D156: 19.7 | E156: 4.4 | F156: 4.2
A157: 2011-10-30 | B157: 21.7 | C157: 3 | D157: 17.5 | E157: 12.1 | F157: 11.2
A158: 2011-11-01 | B158: 15.5 | C158: 3 | D158: 18 | E158: 18.3 | F158: 3.2
A159: 2011-11-04 | B159: 17.1 | C159: 7 | D159: 20.9 | E159: -4.1 | F159: -2.3
A160: 2011-11-05 | B160: 22.1 | C160: 6 | D160: 20.6 | E160: -0.9 | F160: 2.6
A161: 2011-11-09 | B161: 25.9 | C161: 7 | D161: 24.5 | E161: 38.5 | F161: 24.2
A162: 2011-11-11 | B162: 25.3 | C162: 10 | D162: 16.4 | E162: 11.2 | F162: 13.7
A163: 2011-11-12 | B163: 21.3 | C163: 4 | D163: 19.6 | E163: 23 | F163: 11.9
A164: 2011-11-15 | B164: 18.4 | C164: 5 | D164: 18.6 | E164: -9.7 | F164: -10.3
A165: 2011-11-17 | B165: 17.9 | C165: 3 | D165: 21 | E165: 1.6 | F165: 6.2
A166: 2011-11-20 | B166: 16.4 | C166: 5 | D166: 17.8 | E166: -4.6 | F166: -3.3
A167: 2011-11-25 | B167: 20.3 | C167: 3 | D167: 17.7 | E167: 11.4 | F167: 18
A168: 2011-11-27 | B168: 12.8 | C168: 3 | D168: 15.6 | E168: -7.6 | F168: -2
A169: 2011-11-29 | B169: 21.6 | C169: 6 | D169: 18.2 | E169: 7.3 | F169: 19.1
A170: 2011-12-01 | B170: 16.8 | C170: 3 | D170: 22.8 | E170: -5.4 | F170: -1.7
A171: 2011-12-03 | B171: 27.8 | C171: 9 | D171: 24.7 | E171: 33.6 | F171: 35.1
A172: 2011-12-05 | B172: 16.6 | C172: 3 | D172: 21 | E172: -22.5 | F172: -21.4
A173: 2011-12-07 | B173: 19.8 | C173: 6 | D173: 17.7 | E173: -2.1 | F173: 10.9
A174: 2011-12-08 | B174: 17.6 | C174: 1 | D174: 19.9 | E174: 4.3 | F174: 0.8
A175: 2011-12-10 | B175: 10.8 | C175: 3 | D175: 14.4 | E175: 2.9 | F175: -2.9
A176: 2011-12-13 | B176: 25.1 | C176: 5 | D176: 18.9 | E176: 6.6 | F176: 9
A177: 2011-12-14 | B177: 22.8 | C177: 4 | D177: 17 | E177: 16.9 | F177: 13
A178: 2011-12-16 | B178: 12.3 | C178: 4 | D178: 20.3 | E178: 17.4 | F178: -6.3
A179: 2011-12-20 | B179: 17 | C179: 5 | D179: 18.7 | E179: -21.8 | F179: -20.5
A180: 2011-12-22 | B180: 20 | C180: 6 | D180: 20 | E180: -7.3 | F180: -4.1
A181: 2011-12-23 | B181: 17.9 | C181: 7 | D181: 20.6 | E181: 14.1 | F181: 25.7
A182: 2011-12-27 | B182: 16.2 | C182: 6 | D182: 17.6 | E182: 7 | F182: 0.6
A183: 2011-12-30 | B183: 33.8 | C183: 13 | D183: 21.6 | E183: 18.2 | F183: 8.3
A184: 2011-12-31 | B184: 27.6 | C184: 11 | D184: 20 | E184: 35.5 | F184: 33.1
A185: 2012-01-02 | B185: 31.6 | C185: 9 | D185: 25.1 | E185: 20.8 | F185: 21.2
A186: 2012-01-05 | B186: 18.1 | C186: 3 | D186: 20.1 | E186: -6.6 | F186: -6.5
A187: 2012-01-07 | B187: 21.3 | C187: 5 | D187: 16.9 | E187: 35.7 | F187: 6.6
A188: 2012-01-08 | B188: 32.2 | C188: 9 | D188: 21 | E188: 14.1 | F188: 7.7
A189: 2012-01-12 | B189: 18.8 | C189: 1 | D189: 18.3 | E189: 29.2 | F189: 11.3
A190: 2012-01-14 | B190: 20.1 | C190: 6 | D190: 15.9 | E190: 29.7 | F190: 20.3
A191: 2012-01-16 | B191: 19.5 | C191: 7 | D191: 22.4 | E191: 13.5 | F191: 24.1
A192: 2012-01-17 | B192: 27.1 | C192: 6 | D192: 25.1 | E192: 11.4 | F192: 10.6
A193: 2012-01-19 | B193: 12.5 | C193: 3 | D193: 16.7 | E193: -16.1 | F193: -7.8
A194: 2012-01-21 | B194: 17.9 | C194: 6 | D194: 22.3 | E194: -5.8 | F194: 1.5
A195: 2012-01-23 | B195: 15.8 | C195: 4 | D195: 19.6 | E195: -9.3 | F195: -9.2
A196: 2012-01-24 | B196: 23 | C196: 3 | D196: 21 | E196: 5.2 | F196: 12.9
A197: 2012-01-31 | B197: 30.8 | C197: 7 | D197: 23 | E197: -10.9 | F197: -1.6
A198: 2012-02-03 | B198: 19.8 | C198: 6 | D198: 18.4 | E198: 5.6 | F198: -0.1
A199: 2012-02-04 | B199: 22.2 | C199: 6 | D199: 20.1 | E199: 8.6 | F199: 5.3
A200: 2012-02-07 | B200: 21.1 | C200: 4 | D200: 21.8 | E200: 2.6 | F200: 3.2
... 292 more rows
